{"text_format":"1","workbook":"xlsx","n_sheets":1,"sheets":["conceptos"],"not_rendered":{"charts":0,"images":2,"macros":1,"external_links":0,"defined_names":1,"comments":0,"pivot_tables":0},"unopened":[],"bounds":{"document_bytes":16777216,"sheet_cells":100000,"rows_first":2000,"rows_last":500,"rows_between":2000,"halvings":0,"cell_chars":16384,"cell_head_chars":4096},"cells_cut":0,"cells_raw":0,"read":"whole","date_system":"1900"}

{"sheet":"conceptos","index":0,"n_rows":226,"n_cols":8,"rows_kept":226,"cut":false,"hidden":false,"merged":[[223,0,223,4],[224,0,225,4],[13,0,13,6],[0,2,0,5],[9,2,9,5],[1,2,3,5],[4,2,4,3],[6,2,6,3],[7,2,7,3],[4,4,4,5],[5,4,5,5],[6,4,6,5],[7,4,7,5],[10,2,10,5],[11,2,11,5],[5,1,8,1]]}
[null,"GOBIERNO DEL ESTADO DE JALISCO","LICITACIÓN PÚBLICA ESTATAL"]
[null,"INSTITUTO DE LA INFRAESTRUCTURA FÍSICA EDUCATIVA DEL","INFEJAL-E-FAMB2021-B-CONA-06596-LP-0162-2021"]
[null,"ESTADO DE JALISCO"]
[]
[null,"DESCRIPCIÓN GENERAL DE LOS TRABAJOS:","FECHA DE INICIO:"]
[null,null,null,"FECHA DE TERMINACIÓN:"]
[null,null,"PLAZO DE EJECUCIÓN:"]
[null,null,"FECHA:"]
[]
[null,"RAZÓN SOCIAL DEL LICITANTE:","NOMBRE, CARGO Y FIRMA DEL LICITANTE:",null,null,null,"DOCUMENTO"]
[]
[]
[]
["PRESUPUESTO DE OBRA"]
[]
["CLAVE","DESCRIPCIÓN","UNIDAD","CANTIDAD","PRECIO UNITARIO ($)","PRECIO UNITARIO ($) CON LETRA","IMPORTE ($) M.N."]
["TRABAJO : BAS-CONA-06596","CONSTRUCCIÓN DE AULA DIDÁCTICA Y REHABILITACIÓN DE LA ESCUELA PRIMARIA AURELIO ORTEGA CCT 14DPR2722S, UBICADA EN LA LOCALIDAD TIERRAS COLORADAS, MUNICIPIO DE ACATIC, JALISCO.",null,null,null,null,{"$f":"TEXT(SUM(G18 + G106 + G128 + G148 + G172 + G180), \"$ #,##0.00 ;\")","v":"$ 0.00 "}]
["D","EDIFICIO D",null,null,null,null,{"$f":"TEXT(SUM(G19 + G21 + G28 + G44 + G53 + G62 + G64 + G68 + G78 + G84 + G88 + G96 + G104), \"$ #,##0.00 ;\")","v":"$ 0.00 "}]
["D.01(140)","DEMOLICIONES, DESMONTAJES Y MECANICA DE SUELOS    ",null,null,null,null,{"$f":"TEXT(SUM(G20:G20), \"$ #,##0.00 ;\")","v":"$ 0.00 "}]
[144153,"REUBICACION Y TRASPLANTE DE ARBOL DE 3.50 A 5.00 MTS. DE ALTURA, INCLUYE: PODA PREVIA AL DESPLANTE, EXCAVACIONES TANTO PARA SU EXTRACCION COMO PARA SU PLANTACION, TRASLADO DENTRO DEL PLANTEL AL LUGAR DE SU NUEVA UBICACION, MANIOBRAS, ARRASTRES, PLANTACION, HERRAMIENTAS, ABONO Y MANO DE OBRA.","PZA","2.0000",0,"CERO PESOS 00/100 M.N.",0,372161]
["D.02(150)","TRABAJOS PRELIMINARES                             ",null,null,null,null,{"$f":"TEXT(SUM(G22:G27), \"$ #,##0.00 ;\")","v":"$ 0.00 "}]
[150020,"LIMPIEZA DE TERRENO RETIRANDO BASURA Y DESHIERBE FUERA DE LA OBRA. INCLUYE: HERRAMIENTAS, MANO DE OBRA, RECOLECCION, JUNTA Y RETIRO. (PROYECCION DE CUBIERTA).","M2 ","74.8800",0,"CERO PESOS 00/100 M.N.",0,372162]
[150110,"TRAZO Y NIVELACION DE EDIFICIOS ESTABLECIENDO REFERENCIAS DEFINITIVAS, CON TRANSITO Y NIVEL (EQUIPO TOPOGRAFICO), INCLUYE: PERSONAL TECNICO CALIFICADO, ESTACAS, MOJONERAS, LOCALIZACION DE ENTRE EJES, BANCOS DE NIVEL, MATERIALES PARA SEÑALAMIENTO, EQUIPO, HERRAMIENTA Y MANO DE OBRA.","M2 ","74.8800",0,"CERO PESOS 00/100 M.N.",0,372163]
[150210,"DESPALME DE TERRENO NATURAL POR CUALQUIER MEDIO, CON ESPESOR PROMEDIO DE 20 CM. INCLUYE: CARGA Y ACARREO DEL PRODUCTO FUERA DE LA OBRA, MANO DE OBRA, HERRAMIENTA Y EQUIPO. (PROYECCION DE CUBIERTA).","M2 ","74.8800",0,"CERO PESOS 00/100 M.N.",0,372164]
[152202,"EXCAVACION EN CEPAS POR CUALQUIER MEDIO, MATERIAL TIPO \"A\", DE 0 A 2.00 M. DE PROFUNDIDAD, EN SECO, INCLUYE: AFINE DE TALUDES Y FONDO, TRAPALEOS,  MOVIMIENTOS Y ACARREOS DENTRO DE LA OBRA, HERRAMIENTAS Y MANO DE OBRA, MEDIDO EN BANCO.","M3 ","33.1000",0,"CERO PESOS 00/100 M.N.",0,372165]
[152402,"EXCAVACION A CIELO ABIERTO POR CUALQUIER MEDIO, MATERIAL TIPO \"A\", DE 0 A 2.00 M. DE PROFUNDIDAD, EN SECO, INCLUYE: AFINE DE TALUDES Y FONDO, TRAPALEOS,  MOVIMIENTOS Y ACARREOS DENTRO DE LA OBRA, HERRAMIENTAS Y MANO DE OBRA, MEDIDO EN BANCO.","M3 ","15.0000",0,"CERO PESOS 00/100 M.N.",0,372166]
[156002,"CARGA POR CUALQUIER MEDIO Y ACARREO EN CAMION DE MATERIAL DE DESPERDICIO PRODUCTO DE LAS EXCAVACIONES FUERA DE LA OBRA, A LUGAR PERMITIDO POR LAS AUTORIDADES CORRESPONDIENTES, MEDIDO EN BANCO. INCLUYE CARGA,  ACARREO Y DESCARGA A TIRO LIBRE, HERRAMIENTA, EQUIPO, MATERIALES DE CONSUMO Y MANO DE OBRA.","M3 ","48.1000",0,"CERO PESOS 00/100 M.N.",0,372167]
["D.03(160)","CIMENTACION                                       ",null,null,null,null,{"$f":"TEXT(SUM(G29:G43), \"$ #,##0.00 ;\")","v":"$ 0.00 "}]
[160222,"PLANTILLA DE CONCRETO F'C=100 KG/CM2, TMA=3/4\", DE 5.00 CM DE ESPESOR PROMEDIO. INCLUYE: MATERIALES, HERRAMIENTAS, AFINE, NIVELACION, LIMPIEZA, MANO DE OBRA Y ACARREO DE MATERIALES AL SITIO DE SU UTILIZACION.","M2 ","22.8000",0,"CERO PESOS 00/100 M.N.",0,372168]
[166301,"SUMINISTRO Y FABRICACION DE CONTRATRABE EN CIMENTACION DE  CONCRETO DE F´C=250 KG/CM2, TMA 3/4\" R.N CON DIMENSIONDE DE 0.14 X 0.35 M. ARMADA CON 4 VARILLAS # 3 Y E.N° 2 @ 15 CM. PROMEDIO, INCLUYE: CIMBRA COMUN, DESCIMBRADO, CURADO, VIBRADO, CRUCES DE ACERO CON ELEMENTOS TRANSVERSALES,  PRUEBAS, MATERIALES MENORES Y TODO LO NECESARIO PARA SU CORRECTA EJECUCION.","ML ","15.7200",0,"CERO PESOS 00/100 M.N.",0,372169]
[166303,"SUMINISTRO Y FABRICACION DE CONTRATRABE EN CIMENTACION DE CONCRETO DE F´C=250 KG/CM2, TMA 3/4\" R.N CON DIMENSIONDE DE 0.14 X 0.35 M. ARMADA CON 4 VARILLAS # 4 Y E.N° 2 @ 15 CM. PROMEDIO, INCLUYE: ARMADO, COLADO, CURADO, VIBRADO, PRUEBAS DEL CONCRETO, CIMBRA COMUN, DESCIMBRA, DESPERDICIOS, TRASLAPES, CRUCES DE VARILLAS CON ELEMENTOS TRANSVERSALES, ANDAMIOS, MANO DE OBRA, HERRAMIENTA Y ACARREO DE MATERIALES AL SITIO DE SU UTILIZACION, A CUALQUIER ALTURA.","ML ","7.8000",0,"CERO PESOS 00/100 M.N.",0,372170]
[166304,"SUMINISTRO Y FABRICACION DE CONTRATRABE EN CIMENTACION DE CONCRETO DE F´C=250 KG/CM2, TMA 3/4\" R.N CON DIMENSIONDE DE 0.14 X 0.35 M. ARMADA CON 4 VAR. # 4 + 4 VAR. DEL # 3 Y E.N° 2 @ 15 CM. PROMEDIO, INCLUYE: ARMADO, COLADO, CURADO, VIBRADO, PRUEBAS DEL CONCRETO, CIMBRA COMUN, DESCIMBRA, DESPERDICIOS, TRASLAPES, CRUCES DE VARILLAS CON ELEMENTOS TRANSVERSALES, ANDAMIOS, MANO DE OBRA, HERRAMIENTA Y ACARREO DE MATERIALES AL SITIO DE SU UTILIZACION, A CUALQUIER ALTURA.","ML ","4.4800",0,"CERO PESOS 00/100 M.N.",0,372171]
[170012,"CIMBRA  ACABADO COMUN, EN CIMENTACION, INCLUYE: DESPERDICIO, HABILITADO, CIMBRADO Y DESCIMBRA, NIVELACION, PLOMEO MATERIAL, MANO DE OBRA , LIMPIEZA, HERRAMIENTA, ACARREO DEL MATRIAL DENTRO Y FUERA DE LA OBRA.","M2 ","8.6600",0,"CERO PESOS 00/100 M.N.",0,372172]
[173003,"SUMINISTRO, HABILITADO, ARMADO Y COLOCACION DE ACERO DE REFUERZO FY=4,200 KG/CM2 (G.E.), DE 3/8\" ( #3 ), EN CIMENTACION, INCLUYE: MATERIALES, HABILITADO,  DOBLECES,  SILLETAS, ALAMBRE, GANCHOS, ESCUADRAS, TRASLAPES, DESPERDICIOS HERRAMIENTAS, MANO DE OBRA Y ACARREO DE MATERIALES AL SITIO DE SU COLOCACION.","KG ","61.0000",0,"CERO PESOS 00/100 M.N.",0,372173]
[173004,"SUMINISTRO, HABILITADO, ARMADO Y COLOCACION DE ACERO DE REFUERZO FY=4,200 KG/CM2 (G.E.), DE 1/2\" ( #4 ), EN CIMENTACION, INCLUYE: MATERIALES, HABILITADO,  DOBLECES,  SILLETAS, ALAMBRE, GANCHOS, ESCUADRAS, TRASLAPES, DESPERDICIOS HERRAMIENTAS, MANO DE OBRA Y ACARREO DE MATERIALES AL SITIO DE SU COLOCACION.","KG ","42.9000",0,"CERO PESOS 00/100 M.N.",0,372174]
[176008,"SUMINISTRO Y COLOCACION DE CONCRETO HECHO EN OBRA F'C=250 KG/CM2, TMA= 3/4\", R.N. EN CIMENTACION. INCLUYE: TENDIDO, RASTREADO, VIBRADO, NIVELACION, HERRAMIENTAS, LIMPIEZA, PRUEBAS,  CURADO CON CURACRETO ROJO,  DESPERDICIO Y MANO DE OBRA.","M3 ","2.2000",0,"CERO PESOS 00/100 M.N.",0,372175]
[180052,"RELLENO EN CEPAS POR CUALQUIER MEDIO, CON MATERIAL DE BANCO, (ARENA LIMOSA, TEPETATE, ETC.) COMPACTADO AL 90% PROCTOR, EN CAPAS DE 15 CM, MEDIDO COMPACTO. INCLUYE:  SUMINISTRO DE AGUA PARA LOGRAR HUMEDAD OPTIMA, DESPERDICIOS, TENDIDO, TRASPALEOS,  EQUIPO, PRUEBAS DE COMPACTACION, AFINE, NIVELACION, HERRAMIENTAS, MANO DE OBRA Y  ACARREO HASTA EL SITIO DE SU COLOCACION.  (VOLUMEN MEDIDO COMPACTADO).","M3 ","9.2000",0,"CERO PESOS 00/100 M.N.",0,372176]
[180054,"RELLENO EN CEPAS POR CUALQUIER MEDIO, CON MATERIAL DE BANCO, (ARENA LIMOSA) COMPACTADO AL 95% PROCTOR, EN CAPAS DE 15 CM, MEDIDO COMPACTO. INCLUYE:  SUMINISTRO DE AGUA PARA LOGRAR HUMEDAD OPTIMA, DESPERDICIOS, TENDIDO, TRASPALEOS,  EQUIPO, PRUEBAS DE COMPACTACION, AFINE, NIVELACION, HERRAMIENTAS, MANO DE OBRA Y  ACARREO HASTA EL SITIO DE SU COLOCACION.  (VOLUMEN MEDIDO COMPACTADO).","M3 ","8.1000",0,"CERO PESOS 00/100 M.N.",0,372177]
[180103,"RELLENO COMPACTADO AL 95% PROCTOR, CON MATERIAL DE BANCO, EN CAPAS DE 15 CM DE ESPESOR, AGREGANDO AGUA PARA LOGRAR SU HUMEDAD OPTIMA, POR CUALQUIER MEDIO, INCLUYE: SUMINISTRO DE AGUA PARA LOGRAR HUMEDAD OPTIMA, TENDIDO, TRASPALEOS,  DESPERDICIOS, EQUIPO, PRUEBAS DE COMPACTACION, AFINE, NIVELACION, HERRAMIENTAS, MANO DE OBRA Y  ACARREO HASTA EL SITIO DE SU COLOCACION.  (VOLUMEN MEDIDO COMPACTADO).","M3 ","54.2000",0,"CERO PESOS 00/100 M.N.",0,372178]
[180407,"RELLENO CON MATERIAL PRODUCTO DE LA EXCAVACION AGREGANDO CALHIDRA EN PROPORCION 25 KG/M3, COMPACTADO AL 95% PROCTOR, INCLUYE: ESCARIFICADO DEL TERRENO, HUMEDAD OPTIMA, MEZCLADO, TENDIDO, COMPACTACION POR CUALQUIER MEDIO EN CAPAS DE 15 CMS., NIVELADO, PRUEBAS DE COMPACTACION, TRASPALEOS, HERRAMIENTAS, MANO DE OBRA Y LOS ACARREOS NECESARIOS. MEDIDO COMPACTO.","M3 ","15.3000",0,"CERO PESOS 00/100 M.N.",0,372179]
[190022,"MURETE DE ENRRASE EN CIMENTACION CON BLOCK SOLIDO DE JALCRETO 11 X 14 X 28 CM DE SECCION, A SOGA, ASENTADO CON MORTERO CEMENTO-ARENA EN PROP. 1:3, ACABADO COMUN, INCLUYE:TRAZO, NIVELACION, PLOMEO, HERRAMIENTAS, DESPERDICIOS, MANO DE OBRA, LIMPIEZA Y ACARREO DE MATERIALES AL SITIO DE SU UTILIZACION.","M2 ","24.9500",0,"CERO PESOS 00/100 M.N.",0,372180]
[192511,"ANCLAJE DE CASTILLO EN CIMENTACION 14 X 15 CMS., CONCRETO F'C=250 KG/CM2, ARMADO CON 4 VARILLAS DEL #3 (3/8\") Y ESTRIBOS DEL #2 A CADA 15 CMS., INCLUYE: ARMADO, COLADO, CURADO, VIBRADO, CIMBRA COMUN, DESCIMBRA, DESPERDICIOS, TRASLAPES, CRUCES DE VARILLAS CON ELEMENTOS TRANSVERSALES, ANDAMIOS, MANO DE OBRA, HERRAMIENTA Y ACARREO DE MATERIALES AL SITIO DE SU UTILIZACION, A CUALQUIER ALTURA.","ML ","0.9500",0,"CERO PESOS 00/100 M.N.",0,372181]
[192514,"ANCLAJE DE CASTILLO EN CIMENTACION 14 X 20 CMS., CONCRETO F'C=250 KG/CM2, ARMADO CON 4 VARILLAS DEL #3 (3/8\") Y ESTRIBOS DEL #2 A CADA 15 CMS., INCLUYE: ARMADO, COLADO, CURADO, VIBRADO, CIMBRA COMUN, DESCIMBRA, DESPERDICIOS, TRASLAPES, CRUCES DE VARILLAS CON ELEMENTOS TRANSVERSALES, ANDAMIOS, MANO DE OBRA, HERRAMIENTA Y ACARREO DE MATERIALES AL SITIO DE SU UTILIZACION, A CUALQUIER ALTURA.","ML ","7.6000",0,"CERO PESOS 00/100 M.N.",0,372182]
["D.04(200)","ESTRUCTURA                                        ",null,null,null,null,{"$f":"TEXT(SUM(G45:G52), \"$ #,##0.00 ;\")","v":"$ 0.00 "}]
[210222,"CIMBRA DE MADERA, ACABADO APARENTE, EN TRABES, INCLUYE: HABILITADO, CHAFLANES, CIMBRA, DESCIMBRA, DESPERDICIOS,  HERRAMIENTAS, PUNTALES, ANDAMIOS, LIMPIEZAS, MANO DE OBRA  Y ACARREO DE MATERIALES AL SITIO DE SU UTILIZACION, A CUALQUIER NIVEL.","M2 ","17.1000",0,"CERO PESOS 00/100 M.N.",0,372183]
[210322,"CIMBRA DE MADERA, ACABADO APARENTE, EN LOSAS, INCLUYE: HABILITADO, CHAFLANES, CIMBRA, DESCIMBRA, GOTEROS, HERRAMIENTAS, LIMPIEZAS, MANO DE OBRA  Y ACARREO DE MATERIALES AL SITIO DE SU UTILIZACION, A CUALQUIER NIVEL.","M2 ","73.0000",0,"CERO PESOS 00/100 M.N.",0,372184]
[213003,"SUMINISTRO, HABILITADO, ARMADO Y COLOCACION DE ACERO DE REFUERZO FY=4,200 KG/CM2 (G.E.), DE 3/8\" (# 3 ), EN ESTRUCTURA, INCLUYE: MATERIALES, HABILITADO,  DOBLECES,  SILLETAS, ALAMBRE, GANCHOS, ESCUADRAS, TRASLAPES, DESPERDICIOS HERRAMIENTAS, MANO DE OBRA Y ACARREO DE MATERIALES AL SITIO DE SU COLOCACION.","KG ","693.4000",0,"CERO PESOS 00/100 M.N.",0,372185]
[213004,"SUMINISTRO, HABILITADO, ARMADO Y COLOCACION DE ACERO DE REFUERZO FY=4,200 KG/CM2 (G.E.), DE 1/2\" (# 4 ), EN ESTRUCTURA, INCLUYE: MATERIALES, HABILITADO,  DOBLECES,  SILLETAS, ALAMBRE, GANCHOS, ESCUADRAS, TRASLAPES, DESPERDICIOS HERRAMIENTAS, MANO DE OBRA Y ACARREO DE MATERIALES AL SITIO DE SU COLOCACION.","KG ","138.8000",0,"CERO PESOS 00/100 M.N.",0,372186]
[213005,"SUMINISTRO, HABILITADO, ARMADO Y COLOCACION DE ACERO DE REFUERZO FY=4,200 KG/CM2 (G.E.), DE 5/8\" (# 5 ), EN ESTRUCTURA, INCLUYE: MATERIALES, HABILITADO,  DOBLECES,  SILLETAS, ALAMBRE, GANCHOS, ESCUADRAS, TRASLAPES, DESPERDICIOS HERRAMIENTAS, MANO DE OBRA Y ACARREO DE MATERIALES AL SITIO DE SU COLOCACION.","KG ","35.6500",0,"CERO PESOS 00/100 M.N.",0,372187]
[216932,"SUMINISTRO Y COLOCACION DE CONCRETO PREMEZCLADO BOMB, F'C=250 KG/CM2, T.M.A.= 3/4, R.N., EN TRABES Y FALDONES, INCLUYE:MATERIALES, FLETES, MANIOBRAS, BOMBEO, CURADO CON CURACRETO ROJO, VIBRADO, AFINE Y ACABADO REGLEADO,  DESPERDICIO, PRUEBAS DE RESISTENCIA Y MANO DE OBRA, A CUALQUIER NIVEL.","M3 ","1.5400",0,"CERO PESOS 00/100 M.N.",0,372188]
[216942,"SUMINISTRO Y COLOCACION DE CONCRETO PREMEZCLADO BOMB, F'C=250 KG/CM2, T.M.A.= 3/4, R.N., EN LOSAS, INCLUYE: MATERIALES, FLETES, MANIOBRAS, BOMBEO, CURADO CON CURACRETO ROJO, VIBRADO, AFINE Y ACABADO REGLEADO,  DESPERDICIO, PRUEBAS DE RESISTENCIA Y MANO DE OBRA, A CUALQUIER NIVEL.","M3 ","7.6200",0,"CERO PESOS 00/100 M.N.",0,372189]
[322512,"ACABADO PULIDO Y/O APALILLADO FINO POR CUALQUIER MEDIO DE LOSA Y/O ELEMENTOS DE CONCRETO (GRADAS, PISOS, AZOTEAS Y/O ENTREPISOS DE CONCRETO), TERMINADO EN FORMA INTEGRAL, (SIN UTILIZAR PASTA),  INCLUYE: DESPERDICIOS, ACARREOS, REGLEADO, REMATES, JUNTAS FRIAS CON VOLTEADOR, HERRAMIENTAS Y MANO DE OBRA.","M2 ","76.3500",0,"CERO PESOS 00/100 M.N.",0,372190]
["D.05(310)","MUROS, CADENAS, CASTILLOS Y REPIZONES.            ",null,null,null,null,{"$f":"TEXT(SUM(G54:G61), \"$ #,##0.00 ;\")","v":"$ 0.00 "}]
[310172,"DALA DE CONCRETO F'C=250 KG/CM2, T.M.A.=3/4\", CON SECCION DE 14 X 15 CMS., ARMADA CON 4 VARILLAS DEL # 3 Y ESTRIBOS DEL NO. 2 @ 20 CMS., INCLUYE: ARMADO, COLADO, CURADO, VIBRADO, CIMBRA COMUN, DESCIMBRA, TRASLAPES, CRUCES DE VARILLAS CON ELEMENTOS TRANSVERSALES, DESPERDICIOS, MANO DE OBRA, HERRAMIENTA Y ACARREO DE MATERIALES AL SITIO DE SU UTILIZACION, A CUALQUIER ALTURA.","ML ","26.8000",0,"CERO PESOS 00/100 M.N.",0,372191]
[310178,"DALA DE CONCRETO F'C=250 KG/CM2, T.M.A.=3/4\", CON SECCION DE 14 X 20 CMS., ARMADA CON 4 VARILLAS DEL # 3 Y ESTRIBOS DEL NO. 2 @ 15 CMS., INCLUYE: ARMADO, COLADO, CURADO, VIBRADO, CIMBRA COMUN, DESCIMBRA, TRASLAPES, CRUCES DE VARILLAS CON ELEMENTOS TRANSVERSALES, DESPERDICIOS, MANO DE OBRA, HERRAMIENTA Y ACARREO DE MATERIALES AL SITIO DE SU UTILIZACION, A CUALQUIER ALTURA.","ML ","15.4000",0,"CERO PESOS 00/100 M.N.",0,372192]
[310220,"DALA DE CONCRETO F'C=250 KG/CM2, T.M.A.=3/4\", CON SECCION DE 14 X 20 CMS., ARMADA CON 4 VARILLAS DEL # 4 Y ESTRIBOS DEL NO. 2 @ 20 CMS., INCLUYE: ARMADO, COLADO, CURADO, VIBRADO, CIMBRA COMUN, DESCIMBRA, DESPERDICIOS, MANO DE OBRA, HERRAMIENTA Y ACARREO DE MATERIALES AL SITIO DE SU UTILIZACION, A CUALQUIER ALTURA.","ML ","15.6000",0,"CERO PESOS 00/100 M.N.",0,372193]
[310538,"DALA DE CONCRETO F'C=250 KG/CM2, T.M.A.=3/4\", CON SECCION DE 14 X 10 CMS., SIN ARMAR, INCLUYE: COLADO, CURADO, VIBRADO, CIMBRA APARENTE, DESCIMBRA, DESPERDICIOS, MANO DE OBRA, HERRAMIENTA Y ACARREO DE MATERIALES AL SITIO DE SU UTILIZACION, A CUALQUIER ALTURA.","ML ","26.8000",0,"CERO PESOS 00/100 M.N.",0,372194]
[312212,"CASTILLO DE CONCRETO F'C=250 KG/CM2, T.M.A.=3/4\", CON SECCION DE 14 X 15 CMS., ARMADA CON 4 VARILLAS DEL # 3 Y ESTRIBOS DEL NO. 2 @ 15 CMS., INCLUYE: ARMADO, COLADO, CURADO, VIBRADO, CIMBRA COMUN, DESCIMBRA, DESPERDICIOS, TRASLAPES, CRUCES DE VARILLAS CON ELEMENTOS TRANSVERSALES, ANDAMIOS, MANO DE OBRA, HERRAMIENTA Y ACARREO DE MATERIALES AL SITIO DE SU UTILIZACION, A CUALQUIER ALTURA.","ML ","0.7300",0,"CERO PESOS 00/100 M.N.",0,372195]
[312256,"CASTILLO DE CONCRETO F'C=250 KG/CM2, T.M.A.=3/4\", CON SECCION DE 14 X 20 CMS., ARMADA CON 4 VARILLAS DEL # 3 Y ESTRIBOS DEL NO. 2 @ 15 CMS., INCLUYE: ARMADO, COLADO, CURADO, VIBRADO, CIMBRA COMUN, DESCIMBRA, TRASLAPES, CRUCES DE VARILLAS CON ELEMENTOS TRANSVERSALES, DESPERDICIOS, MANO DE OBRA, HERRAMIENTA Y ACARREO DE MATERIALES AL SITIO DE SU UTILIZACION, A CUALQUIER ALTURA.","ML ","23.6000",0,"CERO PESOS 00/100 M.N.",0,372196]
[314032,"MURO DE TABIQUE DE LAMA, DE 14 CMS. DE ESPESOR PROMEDIO, A SOGA, CON TABIQUE DE LAMA 7 X 14 X 28 CMS., ACABADO COMUN, ASENTADO CON MORTERO CEMENTO-ARENA EN PROPORCION 1:3, EN CUALQUIER NIVEL, INCLUYE: TRAZO, NIVELACION, PLOMEO, ANDAMIOS, DESPERDICIOS, MANO DE OBRA, LIMPIEZA Y ACARREO DE MATERIALES AL SITIO DE SU UTILIZACION.","M2 ","49.8000",0,"CERO PESOS 00/100 M.N.",0,372197]
[344012,"IMPERMEABILIZACION DE CADENAS DE DESPLANTE EN MUROS, CON UNA CAPA DE EMULTEX (O SIMILAR), DOS CAPAS DE BITUMEX (O SIMILAR) Y UNA CAPA DE CRISTAFLEX (O SIMILAR).","ML ","28.0000",0,"CERO PESOS 00/100 M.N.",0,372198]
["D.06(319)","ENTREPISOS, CUBIERTA Y ACABADOS DE AZOTEA         ",null,null,null,null,{"$f":"TEXT(SUM(G63:G63), \"$ #,##0.00 ;\")","v":"$ 0.00 "}]
[344125,"IMPERMEABILIZACION DE MUROS O LOSAS, A BASE DE MEMBRANA PREFABRICADA, MCA. IMPERQUIMIA, UNIPLAS AERO PLUS SBS, ALTO DESEMPEÑO CON VENTILACION ANTIABOLSAMIENTOS, FABRICADA A BASE DE ASFALTOS MODIFICADOS CON POLIMEROS SINTETICOS SBS (ESTIRENO BUTADIENO ESTIRENO) REFORZADA CON MALLA POLIESTER DE ALTA RESISTENCIA, ACABADO APARENTE A BASE DE GRAVILLA ESMALTADA A FUEGO, 4.5 MM  DE ESPESOR TOTAL, COLOR ROJO TERRACOTA, GARANTIA POR ESCRITO DE 10 AÑOS, POR LA EMPRESA CONTRATISTA., INCLUYE: LIMPIEZA Y PREPARACION DE LA SUPERFICIE, APLICACION DE PRIMER IMPERCOAT PRIMARIO SL, PARA ANCLAJE Y TAPAPORO DE LA SUPERFICIE, SELLADO DE FISURAS Y GRIETAS A BASE DE CEMENTO PLASTICO BITUMINOSO IMPERCOAT CEMENTO SBS, SUMINISTRO Y COLOCACION DE MEMBRANA POR MEDIO DE TERMOFUSION A BASE DE FUEGO DE SOPLETE DE GAS BUTANO, HACIENDO TRASLAPES MINIMOS DE 0.10 MTS. EN AMBOS SENTIDOS, SELLADO DE ORILLAS, REMATES Y TRASLAPES, MATERIALES MENORES Y DE CONSUMO, CORTES, DESPERDICIOS, LIMPIEZA GENERAL, HERRAMIENTAS, MANO DE OBRA ESPECIALIZADA Y ACARREOS AL SITIO DE SU COLOCACION.","M2 ","76.3500",0,"CERO PESOS 00/100 M.N.",0,372199]
["D.07(355)","RECUBRIMIENTOS Y ACABADOS                         ",null,null,null,null,{"$f":"TEXT(SUM(G65:G67), \"$ #,##0.00 ;\")","v":"$ 0.00 "}]
[355022,"APLANADO DE MUROS Y/O TECHOS CON MORTERO CEMENTO-CAL-ARENA DE RIO EN PROP. 1:2:6 DE 2 CM. DE ESPESOR PROMEDIO, A PLOMO Y REGLA, ACABADO APALILLADO FINO, INCLUYE: MATERIALES, DESPERDICIOS, ANDAMIOS, HERRAMIENTAS, PLOMEO, NIVELACION, REMATES, LIMPIEZA DEL AREA DE TRABAJO Y ACARREO DE MATERIALES AL SITIO DE SU UTILIZACION. A CUALQUIER NIVEL.\n","M2 ","128.4000",0,"CERO PESOS 00/100 M.N.",0,372200]
[357322,"BOQUILLAS EN PUERTAS Y VENTANAS, CON MORTERO CEMENTO-CAL-ARENA 1:2:6, INCLUYE: ANDAMIOS Y ACARREO DE MATERIALES AL SITIO DE SU UTILIZACION.","ML ","13.6000",0,"CERO PESOS 00/100 M.N.",0,372201]
[357352,"FILETES Y BOLEADOS, HECHOS CON MORTERO CEMENTO-CAL-ARENA EN PROPORCION 1:2:6, INCLUYE: DESPERDICIOS, ANDAMIOS Y ACARREO DE MATERIALES AL SITIO DE SU UTILIZACION, A CUALQUIER NIVEL.","ML ","73.6500",0,"CERO PESOS 00/100 M.N.",0,372202]
["D.08(372)","PISOS                                             ",null,null,null,null,{"$f":"TEXT(SUM(G69:G77), \"$ #,##0.00 ;\")","v":"$ 0.00 "}]
[344511,"SUMINISTRO Y COLOCACION DE JUNTA DE CONTRACCION ELASTOMERICA. EN PISOS CON UNA SECCION TRANSVERSAL DE 6 X 10 MM, A BASE DE SILICON DE COLOR PARA JUNTAS DE DILATACION, INCLUYE: LIMPIEZA DEL AREA A TRATAR, DESPERDICIOS Y ACARREO DEL MATERIAL AL SITIO DE SU COLOCACION.","ML ","13.7200",0,"CERO PESOS 00/100 M.N.",0,372203]
[360565,"SUMINISTRO Y COLOCACION DE MALLA ELECTROSOLDADA 6X6-10/10 COMO REFUERZO EN PISOS DE CONCRETO, INCLUYE: DESPERDICIOS, TRASLAPES, HERRAMIENTA Y ACARREO DEL MATERIAL AL SITIO DE SU COLOCACION.","M2 ","54.0000",0,"CERO PESOS 00/100 M.N.",0,372204]
[372242,"FIRME DE CONCRETO F´C= 150 KG/CM2 TMA= 3/4\",  DE 8 CM DE ESPESOR, ACABADO APALILLADO. INCLUYE: TRAZO, NIVELACION, AFINE Y COMPACTACION DEL TERRENO, AGUA, MATERIALES, EXTENDIDO, REGLEADO, CURADO, DESPERDICIOS, HERRAMIENTAS, LIMPIEZA, MANO DE OBRA Y ACARREO DEL MATERIAL AL SITIO DE SU UTILIZACION","M2 ","46.2500",0,"CERO PESOS 00/100 M.N.",0,372205]
[373022,"PISO DE CONCRETO F'C=150 KG/CM², T.M.A. 3/4\", DE 0.10 M. DE ESPESOR, COLADO EN CUADROS NO MAYORES DE 3.00 ML POR LADO, INCLUYE: TRAZO, NIVELACION, AFINE Y COMPACTACION DEL TERRENO, AGUA, DESPERDICIOS, ACARREOS, REGLEADO, ACABADO INTEGRAL RAYADO CON BROCHA DE PELO (SIN UTILIZACION DE PASTA), CIMBRA EN FRONTERAS, DESCIMBRA, COLADO, CURADO, REMATES, ESCALONADO, MUESTREADO, JUNTAS FRIAS CON VOLTEADOR, HERRAMIENTAS Y MANO DE OBRA.","M2 ","7.7500",0,"CERO PESOS 00/100 M.N.",0,372206]
[373546,"CEJA DE CONCRETO F'C=250 KG/CM2, TMA=3/4\" DE 15 X 10 CM DE SECCION, ARMADA CON 1 VARILLA #3 (3/8\") Y ESTRIBOS DE 1/4\" @ 25.0 CM, EN CUALQUIER NIVEL. INCLUYE: CIMBRA APARENTE, DESCIMBRA, COLADO, VIBRADO, CURADO, PERFILADO, CHAFLANES, GOTERO, LIMPIEZA, HERRAMIENTAS, MATERIALES, DESPERDICIOS Y MANO DE OBRA.","ML ","23.0200",0,"CERO PESOS 00/100 M.N.",0,372207]
[373766,"FORJADO DE NARIZ DE REMATE EN PISO DE  BANQUETAS, CON 10.0  X  10.0 CM. DE SECCION, INCLUYE SOLO: CIMBRA APARENTE, DESCIMBRA, GOTERO, FORJADO, CHAFLANES, PERFILADO, DESPERDICIOS, HERRAMIENTAS, Y MANO DE OBRA. (NO INCLUYE CONCRETO).","ML ","8.8500",0,"CERO PESOS 00/100 M.N.",0,372208]
[374202,"GUARNICION O MACHUELO DE CONCRETO FC=150 KG/CM2, CON UNA SECCION TRANSVERSAL 15 X 40 CMS., ARMADA CON 4 VARILLAS DEL #3 Y ESTRIBOS #2 A CADA 20 CMS. CON CIMBRA APARENTE POR CARA VISIBLE Y COMUN EN CARA OCULTA , INCLUYE: TRAZO, AFINE Y COMPACTACION DEL TERRENO EN AREA DE CONTACTO, CIMBRA Y DESCIMBRA, COLADO, VIBRADO, CURADO, MATERIALES, HERRAMIENTAS, LIMPIEZA DEL AREA DE TRABAJO, MANO DE OBRA Y ACARREO DE MATERIALES AL SITIO DE SU UTILIZACION.","ML ","8.1500",0,"CERO PESOS 00/100 M.N.",0,372209]
[376023,"SUMINISTRO Y COLOCACION DE PISO DE LOSETA CERAMICA DE 50 X 50 CM., MCA. INTERCERAMIC DE PRIMERA, LINEA SAYULITA, DE CUALQUIER COLOR, GRADO DE DUREZA (PEI) \"IV\" , ASENTADO CON PEGAPISO Y JUNTEDO CON JUNTEADOR DE COLOR, JUNTAS DE 4 MM. DE ANCHO, INCLUYE: TRAZO, CORTE, REMATES, ESCUADRE, DESPERDICIOS, DESPATINADO, EMBOQUILLADOS, CERTIFICADO DE CALIDAD, HERRAMIENTAS, MATERIALES, MANO DE OBRA, LIMPIEZA Y ACARREO DE MATERIALES AL SITIO DE SU UTILIZACION, A CUALQUIER ALTURA.","M2 ","46.2500",0,"CERO PESOS 00/100 M.N.",0,372210]
[376146,"SUMINISTRO Y COLOCACION DE CENEFA DE 15.00 CM APROXIMADAMENTE A BASE DE  PISO DE LOSETA CERAMICA DE PRIMERA, QUE DEBERA CUMPLIR CON LAS SIGUIENTES CARACTERISTICAS TECNICAS: ABSORCION <= 3% , COEFICIENTE DE ESTATICO DE FRICCION >= 0.5, MODULO DE RUPTURA >= 300 KG/CM², PEI, RESISTENCIA A LA ABRASION VISIBLE 1500 CICLOS (PEI IV), RESISTENTE AL MANCHADO, RESISTENCIA AL RAYADO >= 5.0 MOHS, RESISTENTE A LOS QUIMICOS, ASENTADO CON PEGA PISO Y JUNTEADO CON JUNTEADOR DE COLOR, CON JUNTAS DE 4.00 MM. DE ANCHO MINIMO. INCLUYE: HERRAMIENTAS, MATERIALES, TRAZO, CORTES,  NIVELACION,  LIMPIEZA, DESPERDICIOS, MANO DE OBRA Y ACARREO DE MATERIALES AL SITIO DE SU UTILIZACION.","ML ","1.2000",0,"CERO PESOS 00/100 M.N.",0,372211]
["D.09(393)","PINTURA                                           ",null,null,null,null,{"$f":"TEXT(SUM(G79:G83), \"$ #,##0.00 ;\")","v":"$ 0.00 "}]
[393010,"PINTURA VINIL-ACRÍLICA A BASE DE AGUA ACABADO SEMIMATE  LAVABLE, PARA INTERIORES Y EXTERIORES QUE NO DESPRENDA VAPORES TÓXICOS NI OLORES DESAGRADABLES, CON LAS SIGUIENTES CARACTERÍSTICAS ( SÓLIDOS POR PESO 46-52%, SÓLIDOS POR VOLUMEN 30-36%, VISCOSIDAD DE 100-130 UK A 25°C, DENSIDAD > O = 1.2 TON/M3., LAVABILIDAD > O = 4,000 CICLOS, TIEMPO DE SECADO AL TACTO, 30-40 MIN., TIEMPO DE SECADO DURO < O = 8 HRS., CICLO DE CURADO DE 7 DIAS, PH 6-8, RENDIMIENTO EN SUP. LISA 8-10 M2/LT., FINEZA DE MOLIDO (HEGMAN) 3-7 UH.)  EN CADENAS DE DESPLANTE, A UNA CARA, TRABAJO TERMINADO, A DOS MANOS, INCLUYE: MATERIALES MENORES Y DE CONSUMO, PREPARACION DE LA SUPERFICIE, SELLADO DE LA SUPERFICIE, HERRAMIENTAS, LIMPIEZA, MANO DE OBRA Y  ACARREOS DE MATERIALES AL SITIO DE SU UTILIZACION.","ML ","53.6000",0,"CERO PESOS 00/100 M.N.",0,372212]
[393022,"PINTURA VINIL-ACRÍLICA A BASE DE AGUA ACABADO SEMIMATE  LAVABLE, PARA INTERIORES Y EXTERIORES QUE NO DESPRENDA VAPORES TÓXICOS NI OLORES DESAGRADABLES, CON LAS SIGUIENTES CARACTERÍSTICAS ( SÓLIDOS POR PESO 46-52%, SÓLIDOS POR VOLUMEN 30-36%, VISCOSIDAD DE 100-130 UK A 25°C, DENSIDAD > O = 1.2 TON/M3., LAVABILIDAD > O = 4,000 CICLOS, TIEMPO DE SECADO AL TACTO, 30-40 MIN., TIEMPO DE SECADO DURO < O = 8 HRS., CICLO DE CURADO DE 7 DIAS, PH 6-8, RENDIMIENTO EN SUP. LISA 8-10 M2/LT., FINEZA DE MOLIDO (HEGMAN) 3-7 UH.)  EN MUROS APLANADOS DE MEZCLA APALILLADO O PULIDO, TRABAJO TERMINADO, A DOS MANOS, INCLUYE: MATERIALES MENORES Y DE CONSUMO, ANDAMIOS, PREPARACION DE LA SUPERFICIE, SELLADO DE LA SUPERFICIE, HERRAMIENTAS, LIMPIEZA, MANO DE OBRA Y  ACARREOS DE MATERIALES AL SITIO DE SU UTILIZACIÓN.","M2 ","128.4000",0,"CERO PESOS 00/100 M.N.",0,372213]
[393052,"PINTURA VINIL-ACRÍLICA A BASE DE AGUA ACABADO SEMIMATE  LAVABLE, PARA INTERIORES Y EXTERIORES QUE NO DESPRENDA VAPORES TÓXICOS NI OLORES DESAGRADABLES, CON LAS SIGUIENTES CARACTERÍSTICAS ( SÓLIDOS POR PESO 46-52%, SÓLIDOS POR VOLUMEN 30-36%, VISCOSIDAD DE 100-130 UK A 25°C, DENSIDAD > O = 1.2 TON/M3., LAVABILIDAD > O = 4,000 CICLOS, TIEMPO DE SECADO AL TACTO, 30-40 MIN., TIEMPO DE SECADO DURO < O = 8 HRS., CICLO DE CURADO DE 7 DIAS, PH 6-8, RENDIMIENTO EN SUP. LISA 8-10 M2/LT., FINEZA DE MOLIDO (HEGMAN) 3-7 UH.)  EN LOSAS Y ELEMENTOS DE CONCRETO, TRABAJO TERMINADO, A DOS MANOS, INCLUYE: MATERIALES MENORES Y DE CONSUMO, ANDAMIOS, PREPARACION DE LA SUPERFICIE DE CONCRETO, SELLADO DE LA SUPERFICIE, HERRAMIENTAS, LIMPIEZA, MANO DE OBRA Y  EQUIPO DE SEGURIDAD. A CUALQUIER ALTURA.","M2 ","90.1000",0,"CERO PESOS 00/100 M.N.",0,372214]
[393142,"PINTURA DE ESMALTE ALQUIDALICO ANTICORROSIVO, ACABADO BRILLANTE, PARA INTERIORES Y EXTERIORES QUE NO DESPRENDA VAPORES TÓXICOS NI OLORES DESAGRADABLES, CON LAS SIGUIENTES CARACTERÍSTICAS ( SÓLIDOS POR PESO 49-60%, SÓLIDOS POR VOLUMEN 40-46%, VISCOSIDAD DE 110-160 UK A 25°C, DENSIDAD 0.9-1.2 TON/M3., BRILLO A 60°C, 90%, TIEMPO DE SECADO AL TACTO, < O = 6 HRS., TIEMPO DE SECADO DURO < O = 24 HRS., ADHERENCIA 100%, RENDIMIENTO EN SUP. LISA 8-10 M2/LT., DILUCIÓN MÁXIMA (AGUARRÁS, THINER), 15 %,  EN HERRERIA ABIERTA DE PERFILES ESTRUCTURALES (PROTECCIONES), MEDIDA POR UN SOLO LADO, TRABAJO TERMINADO, A DOS MANOS, INCLUYE: MATERIALES MENORES Y DE CONSUMO, ANDAMIOS, PREPARACION DE LA SUPERFICIE, HERRAMIENTAS, LIMPIEZA, MANO DE OBRA Y  EQUIPO DE SEGURIDAD. A CUALQUIER NIVEL. (LA PINTURA ES POR AMBOS LADOS DE LA HERRERIA, PERO PARA SU PAGO ES MEDIDA SOLO POR 1 SOLO LADO).","M2 ","10.5200",0,"CERO PESOS 00/100 M.N.",0,372215]
[393525,"FABRICACION, SUMINISTRO E INSTALACION DE ROTULO DE IDENTIFICACION EN PUERTAS DE INGRESO A (SANITARIOS, DIRECCIONES, AULAS, ANEXOS, ETC.)  CON MEDIDAS GENERALES DE 40 X 20 CM., FABRICADOS A BASE DE ACRILICO SOLIDO DE 3 MM. DE ESPESOR, COLOR CRISTALINO, FORRADO CON VINIL ADHERIBLE OPACO, CON IMAGEN, TEXTO IMPRESO Y CODIGO BRAILLE AL MARGEN INFERIOR IZQUIERDO, INCLUYE: TRAZO, DISEÑO, MATERIALES, MARGEN IMPRESO DE 1 CM DE ANCHO,  ELEMENTOS DE FIJACION,  EQUIPO, HERRAMIENTA Y MANO DE OBRA. EN CUALQUIER NIVEL.","PZA","1.0000",0,"CERO PESOS 00/100 M.N.",0,372216]
["D.10(396)","LIMPIEZA                                          ",null,null,null,null,{"$f":"TEXT(SUM(G85:G87), \"$ #,##0.00 ;\")","v":"$ 0.00 "}]
[396012,"LIMPIEZA DE PISOS DE CONCRETO CON AGUA Y ACIDO MURIATICO AL 10%.","M2 ","7.7500",0,"CERO PESOS 00/100 M.N.",0,372217]
[396022,"LIMPIEZA EN PISO DE CERAMICA, CON AGUA Y JABON.","M2 ","46.2500",0,"CERO PESOS 00/100 M.N.",0,372218]
[396042,"LIMPIEZA DE VIDRIOS CON AGUA Y JABON, 2 CARAS.","M2 ","10.5200",0,"CERO PESOS 00/100 M.N.",0,372219]
["D.11(410)","CANCELERIA, HERRERIA, ALUMINIO, VIDRIOS Y CHAPAS  ",null,null,null,null,{"$f":"TEXT(SUM(G89:G95), \"$ #,##0.00 ;\")","v":"$ 0.00 "}]
[412004,"SUMINISTRO Y FABRICACION DE PROTECCIONES PARA VENTANERIA A BASE DE HERRERIA ESTRUCTURAL CON PERFIL CUADRADO Y/O REDONDO 1/2\" Y SOLERA DE 1/4\" X 1 1/2\", INCLUYE: CORTES, SOLDADURA, TALADROS, PINTURA DE TALLER,  AJUSTES Y DETALLES REALIZADOS EN OBRA DE ACUERDO A LO CONSTRUIDO,  ACARREOS, MATERIALES, DESPERDICIOS, HERRAMIENTAS Y EQUIPO NECESARIAS, MANO DE OBRA CALIFICADA Y TODO LO NECESARIO PARA SU CORRECTA EJECUCION.","KG ","99.5000",0,"CERO PESOS 00/100 M.N.",0,372220]
[412852,"COLOCACION DE HERRERIA TUBULAR Y/O ESTRUCTURAL SOLDADA Y/O ATORNILLADA A ESTRUCTURA Y REPISON EN CUALQUIER NIVEL, INCLUYE: PLOMEO, NIVELADO, AJUSTES Y ACARREO DE MATERIALES AL SITIO DE SU UTILIZACION","M2 ","10.5200",0,"CERO PESOS 00/100 M.N.",0,372221]
[420022,"SUMINISTRO, HABILITADO Y COLOCACION DE CANCELERIA FABRICADA  EN ALUMINIO ANODIZADO NATURAL CON PERFILES COMERCIALES DE 2\" X 1.25\",  MCA. CUPRUM ,  LINEA PANORAMA O SIMILAR, INCLUYE: TRAZO, CORTES, AJUSTES, MATERIALES, CORREDERAS, JALADERAS, OPERADORES, REPISON, SELLADO PERIMETRAL, SILICON, VINIL, HERRAJES, ELEMENTOS DE FIJACION, MATERIALES MENORES Y DE CONSUMO, DESPERDICIOS, HERRAMIENTAS, MANO DE OBRA ESPECIALIZADA, LIMPIEZA, FLETES, EQUIPO Y ACARREO DE MATERIALES AL SITIO DE SU COLOCACION, A CUALQUIER NIVEL.","M2 ","10.5200",0,"CERO PESOS 00/100 M.N.",0,372222]
[422020,"SUMINISTRO Y COLOCACION DE PUERTA PREFABRICADA, CON MEDIDAS GENERALES DE 1.20 X 2.10 MTS.,  MCA. PORCELTECH O SIMILAR EN GARANTIA Y CALIDAD. MOD. BETA, TIPO TAMBOR DE 36 MM. DE ESPESOR, FABRICADA CON BASTIDOR DE PERFIL TUBULAR  GALVANIZADO DE 1 1/4\" , NUCLEO RELLENO CON PANEL HONEY COMB DE 1 3/8\" DE ESPESOR Y DOBLE CARA (INTERIOR-EXTERIOR) DE  LAMINA DE ACERO PORCELANIZADO CAL. 24,  EN COLOR INDICADO POR LA SUPERVISION Y CUBRECANTOS DE ALUMINIO ANODIZADO NATURAL , MARCO Y ANTEPECHO DE HERRERIA TUBULAR DE PERFILES COMERCIALES DE 3\" X 1 1/2\" CAL 14., TOPE DE ANGULO DE 3/4\" X 1/8\", INCLUYE: MARCO, HERRAJES, BISAGRAS, NIVELACION, PLOMEO, ELEMENTOS DE FIJACION, MATERIALES MENORES Y DE CONSUMO, SELLADO PERIMETRAL, HERRAMIENTAS, LIMPIZA, MANO DE OBRA, FLETES Y ACARREOS DE MATERIALES AL SITIO DE SU COLOCACION, EN CUALQUIER NIVEL.","PZA","1.0000",0,"CERO PESOS 00/100 M.N.",0,372223]
[424094,"SUMINISTRO Y COLOCACION DE CERRADURA TIPO EUROPEO PARA PUERTA EXTERIOR, MCA. JAKO, MOD. KIT9001ENT, FABRICADA EN ACERO INOXIDABLE CON ACABADO SATINADO, DOBLE MANIJA DE PERFIL TUBULAR REDONDO Y CILINDRO LLAVE-MARIPOSA, INCLUYE: TRAZO, TALADROS, ELEMENTOS DE FIJACION, HERRAMIENTAS, CILINDRO, CHAPETÓN, LLAVES, LIMPIEZA,  MANO DE OBRA Y  ACARREO DE MATERIAL AL SITIO DE SU UTILIZACION.","PZA","1.0000",0,"CERO PESOS 00/100 M.N.",0,372224]
[424322,"SUMINISTRO Y COLOCACION DE TOPES DE PISO PARA PUERTA. INC.: ACARREO DE MATERIAL AL SITIO DE SU UTILIZACION, A CUALQUIER NIVEL.","PZA","1.0000",0,"CERO PESOS 00/100 M.N.",0,372225]
[426010,"SUMINISTRO Y COLOCACION DE CRISTAL FLOTADO DE 6 MM. DE ESPESOR,  ASENTADO CON SILICON, INCLUYE: CORTES, DESPERDICIOS Y ACARREO DE MATERIALES AL SITIO DE SU UTILIZACION A CUALQUIER NIVEL.","M2 ","10.5200",0,"CERO PESOS 00/100 M.N.",0,372226]
["D.12(510)","INSTALACION ELECTRICA EN EDIFICIO                 ",null,null,null,null,{"$f":"TEXT(SUM(G97:G103), \"$ #,##0.00 ;\")","v":"$ 0.00 "}]
[514034,"SALIDA ELECTRICA DE CENTRO AISLADA OCULTA, CON TUBERIA Y CONEXIONES CONDUIT DE PVC. PESADO  DE AJUSTE DE 13 Y 19 MM. DE DIAMETRO, CABLE VINANEL THW-LS 600 V. A 75° C, 90° C, MARCA CONDUCTORES MONTERREY, (VIAKON-PROTOCOLIZADO), CABLE VINANEL 21 THW-LS 600 V. A 75° C, 90° C, MARCA CONDUMEX (CONDUMEX PROTOCOLIZADO).  CALIBRE 12 EN FASES Y 12 EN TIERRA FISICA, CAJAS DE REGISTRO  CUADRADAS, CHALUPAS Y TAPAS DE  PVC REFORZADO., INCLUYE: TRAZO, RANURAS, MATERIALES MENORES, HERRAMIENTA, MANO DE OBRA ESPECIALIZADA , CONEXIONES, LIMPIEZA DEL AREA DE TRABAJO, PRUEBAS, DESPERDICIOS Y ACARREO DEL MATERIAL AL SITIO DE SU COLOCACION, EN CUALQUIER NIVEL.","SAL","7.0000",0,"CERO PESOS 00/100 M.N.",0,372227]
[518071,"SALIDA ELECTRICA PARA CONTACTO MONOFASICO  DUPLEX POLARIZADO, OCULTA, CON TUBERIA Y CONEXIONES CONDUIT DE PVC. PESADO DE 13 Y 19 MM. DE DIAMETRO,  CABLE VINANEL THW-LS 600 V. A 75° C, 90° C, MARCA CONDUCTORES MONTERREY, (VIAKON-PROTOCOLIZADO), CABLE VINANEL 21 THW-LS 600 V. A 75° C, 90° C, MARCA CONDUMEX (CONDUMEX PROTOCOLIZADO)., CAL.  12  EN FASES Y CAL. 12 PARA TIERRA FISICA, CAJAS DE REGISTRO  CUADRADAS, CHALUPAS Y TAPAS DE PVC REFORZADO, CONTACTO QUINZIÑO MX, TAPA DE ALUMINIO, INCLUYE: TRAZO, RANURAS, CONEXION A TIERRA, MATERIALES MENORES, PRUEBAS, DESPERDICIOS, LIMPIEZAS, HERRAMIENTAS, MANO DE OBRA, Y ACARREO DEL MATERIAL AL SITIO DE SU COLOCACION, A CUALQUIER NIVEL.","SAL","5.0000",0,"CERO PESOS 00/100 M.N.",0,372228]
[522033,"SALIDA ELECTRICA PARA  APAGADOR SENCILLO, OCULTA, CON TUBERIA Y CONEXIONES CONDUIT DE PVC TIPO PESADO DE 13 Y 19 MM. DE DIAMETRO, CABLE VINANEL THW-LS 600 V. A 75° C, 90° C, MARCA CONDUCTORES MONTERREY, (VIAKON-PROTOCOLIZADO), CABLE VINANEL 21 THW-LS 600 V. A 75° C, 90° C, MARCA CONDUMEX (CONDUMEX PROTOCOLIZADO). CALIBRE 12, CAJAS CUADRADAS, CHALUPAS Y TAPAS DE PVC, APAGADOR QUINZIÑO, TAPA DE ALUMINIO, INCLUYE: RANURAS, MATERIALES MENORES, PRUEBAS, DESPERDICIOS Y ACARREO DEL MATERIAL AL SITIO DE SU COLOCACION, A CUALQUIER NIVEL.","SAL","2.0000",0,"CERO PESOS 00/100 M.N.",0,372229]
[540022,"SUMINISTRO Y COLOCACION DE CENTRO DE CARGAS TIPO QOD-4, MCA. SQUARE D, INCLUYE: ELEMENTOS DE FIJACION,  PRUEBAS, MATERIALES MENORES Y DE CONSUMO, CONEXIONES, LIMPIEZAS, HERRAMIENTAS, MANO DE OBRA ESPECIALIZADA Y ACARREO DE MATERIALES AL SITIO DE SU COLOCACION.","PZA","1.0000",0,"CERO PESOS 00/100 M.N.",0,372230]
[543012,"SUMINISTRO Y COLOCACION DE INTERRUPTOR TERMOMAGNETICO DERIVADO CON 1 POLOS, DE 15-60 AMPERES, MCA. SQUARE D, CAT. QO. INCLUYE: PRUEBAS, MATERIALES MENORES, HERRAMIENTAS, MANO DE OBRA ESPECIALIZADA  Y ACARREO DE MATERIALES AL SITIO DE SU COLOCACION.","PZA","2.0000",0,"CERO PESOS 00/100 M.N.",0,372231]
[550221,"SUMINISTRO Y COLOCACION DE LUMINARIA HERMETICO DE SOBREPONER DE 2 X 16 WATTS, MCA. NOVALUX O SIMILAR, MOD. PISCIS, CAT. NVL-PIS-216-LED-P, EN GABINETE DE 1.27 X 0.17 MTS. FABRICADO EN RESINA POLIESTER Y FIBRA DE VIDRIO CON ACABADO A BASE DE PINTURA EN POLVO DE POLIESTER, APLICADA ELECTROSTATICAMENTE Y TERMOENDURECIDA, DIFUSOR DE ACRILICO DE ALTO IMPACTO TRANSPARENTE TERMOFORMADO, CON UNA REFLECTANCIA MINIMA DE 93%, IP-65 DISEÑADA A PRUEBA DE POLVO, VAPORES Y AGUA, PARA OPERAR CON DOS LAMPARA LED LINEAL T8, 16 WATTS CADA UNA, MULTIVOLTAJE 120-277 VOLTS , TEMPERATURA DE COLOR 4000°K, IRC>80,  VIDA UTIL DE 40,000 HRS., 2350 LUMENES TOTALES COMO MINIMO, DRIVER INTEGRADO , LA LUMINARIA (COMPLETA) DEBERA CUMPLIR CON LA NORMA ANCE, INCLUYE: MATERIALES DE FIJACION, LAMPARAS, PRUEBAS, COPIA DE CERTIFICACION ANCE ANEXA EN ELTRAMITE DE LA ESTIMACION, NIVELACION, MATERIALES MENORES Y DE CONSUMO, CONEXIONES, DESPERDICIOS, HERRAMIENTAS, ANDAMIOS, MANO DE OBRA, MATERIALES DE FIJACION, LIMPIEZA DEL AREA DE TRABAJO, Y ACARREO DE MATERIALES AL SITIO DE SU COLOCACION. A CUALQUIER ALTURA.","PZA","1.0000",0,"CERO PESOS 00/100 M.N.",0,372232]
[905630,"SUMINISTRO E INSTALACION DE LUMINARIO DE SOBREPONER MCA. HIGHLUMEN MOD. C-SBV20-S43TLC20-C, NOVALUX MOD. NOEII314.5LEDT8 MVSAPE, O SIMILAR, SISTEMA LED DE 45 WATTS. +- 8%, PARA OPERAR CON TRES TUBOS LED T8 (14-16 WATTS C/U), 4000°K, IRC>80, VIDA UTIL DE 40,000 HRS. 3600 LUMENES TOTALES COMO MINIMO, DRIVER INTEGRADO MULTIVOLTAJE 100-240 VOLTS , EN GABINETE METALICO FABRICADO EN LAMINA DE ACERO ROLADA EN FRIO CAL. 24 MINIMO, CON ACABADO EN POLVO POLIESTER EN APLICACION ELECTROSTÁTICA COLOR BLANCO, DIFUSOR ENVOLVENTE 100% ACRILICO, LA LUMINARIA (COMPLETA) DEBERA CUMPLIR CON LA NORMA ANCE, INCLUYE: ELEMENTOS DE FIJACION, CONEXION, MATERIALES MENORES Y DE CONSUMO, GARANTIAS, COPIA DE CERTIFICACION ANCE ANEXA EN ELTRAMITE DE LA ESTIMACION, HERRAMIENTAS, ANDAMIOS, MANO DE OBRA, PRUEBAS, LIMPIEZA Y ACARREOS.","PZA","6.0000",0,"CERO PESOS 00/100 M.N.",0,372233]
["D.13(530)","EQUIPOS E INSTALACIONES DE REDES DE VOZ Y DATOS.  ",null,null,null,null,{"$f":"TEXT(SUM(G105:G105), \"$ #,##0.00 ;\")","v":"$ 0.00 "}]
[524665,"SALIDA PARA EL SISTEMA DE RED DE VOZ Y/O DATOS, PARA SERVICIO A EQUIPOS DE COMPUTO EN LABORATORIO Y/O TALLER, FORMADA CON TUBERIA CONDUIT DE PVC TIPO PESADO DE 19, 25 Y 32 MM DE DIAM, CAJA REGISTRO GALVANIZADA DE 120 X 120 MM CON TAPA REALZADA EN SALIDAS DE MURO Y/O LOSA, GUIADAS CON ALAMBRE GALVANIZADO CAL NO. 14,  INCLUYE: TRAZO, RANURAS, MATERIALES MENORES Y DE CONSUMO, ELEMENTOS DE  FIJACION, HERRAMIENTAS, PRUEBAS, MANO DE OBRA Y ACARREO DE MATERIALES. (LONGITUD TOMADA DEL REGISTRO TELEFONICO AL SERVICIO-REGISTRO).","SAL","5.0000",0,"CERO PESOS 00/100 M.N.",0,372234]
["33B","MURO REJA",null,null,null,null,{"$f":"TEXT(SUM(G107 + G112 + G116 + G119 + G122 + G125), \"$ #,##0.00 ;\")","v":"$ 0.00 "}]
["33B.01(140)","DEMOLICIONES, DESMONTAJES Y MECANICA DE SUELOS    ",null,null,null,null,{"$f":"TEXT(SUM(G108:G111), \"$ #,##0.00 ;\")","v":"$ 0.00 "}]
[140076,"DEMOLICION DE MURO DE LADRILLO DE LAMA Y/O BLOCK DE JALCRETO DE 14 CMS. DE ESPESOR A CUALQUIER NIVEL, INCLUYE:  DEMOLICION DE DALAS, CADENAS Y CASTILLOS,  DEMOLICION DE RECUBRMIENTOS, APLANADOS, AZULEJO,(PROTECCIONES DE PISOS, VIDRIOS, PUERTAS, VENTANAS, LAMPARAS Y DEMAS INSTALACIONES QUE PUDIERAN RESULTAR DAÑADAS EN EL PROCESO DE LA DEMOLICION.) HERRAMIENTAS, EQUIPO DE SEGURIDAD,  ANDAMIOS, MANO DE OBRA, RETIRO Y ACARREO DE MATERIALES DE DESHECHO DENTRO Y FUERA DE LA OBRA ATIRADERO AUTORIZADO Y LIMPIEZA DEL AREA DE LOS TRABAJOS.","M2 ","21.2500",0,"CERO PESOS 00/100 M.N.",0,372235]
[140427,"DESMONTAJE DE CERCA PERIMETRAL A BASE DE MALLA CICLON DE 1.00 A 1.50 MTS DE ALTURA, EXISTENTE EN OBRA, SIN RECUPERACION, INCLUYE:  RETIRO DE POSTES, MALLA,  ALAMBRE DE PUAS, MANIOBRAS DE ARRASTRE, HERRAMIENTAS, MANO DE OBRA Y RETIRO DE MATERIALES DE DESPERDICIO FUERA DE LA OBRA.","ML ","167.1000",0,"CERO PESOS 00/100 M.N.",0,372236]
[140511,"DEMOLICION DE DALAS Y CASTILLOS EXISTENTES DE CONCRETO ARMADO DE 14 X 20 CMS. A MANO CON MARRO Y CINCEL Y/O CUÑA, INCLUYE: MANO DE OBRA, HERRAMIENTA, EQUIPO Y ACOPIO DE MATERIAL PRODUCTO DE LA DEMOLICION PARA SU POSTERIOR RETIRO.","ML ","7.3000",0,"CERO PESOS 00/100 M.N.",0,372237]
[140651,"DEMOLICION DE FORMA MANUAL DE CASTILLO DE CONCRETO DE 14 X 15 CMS. INCLUYE: HERRAMIENTA, MANO DE OBRA, LIMPIEZA DEL AREA DE TRABAJO Y RETIRO DE MATERIAL PRODUCTO DE LA DEMOLICION FUERA DE LA OBRA.\n","ML ","14.8500",0,"CERO PESOS 00/100 M.N.",0,372238]
["33B.02(310)","MUROS, CADENAS, CASTILLOS Y REPIZONES.            ",null,null,null,null,{"$f":"TEXT(SUM(G113:G115), \"$ #,##0.00 ;\")","v":"$ 0.00 "}]
[310207,"DALA DE CONCRETO F'C=150 KG/CM2, T.M.A.=3/4\", CON SECCION DE 14 X 15 CMS., ARMADA CON 4 VARILLAS DEL # 3 Y ESTRIBOS DEL NO. 2 @ 15 CMS., INCLUYE: ARMADO, COLADO, CURADO, VIBRADO, CIMBRA COMUN, DESCIMBRA, TRASLAPES, CRUCES DE VARILLAS CON ELEMENTOS TRANSVERSALES, DESPERDICIOS, MANO DE OBRA, HERRAMIENTA Y ACARREO DE MATERIALES AL SITIO DE SU UTILIZACION, A CUALQUIER ALTURA.","ML ","83.5500",0,"CERO PESOS 00/100 M.N.",0,372262]
[312244,"CASTILLO DE CONCRETO F'C=150 KG/CM2, T.M.A.=3/4, CON SECCION DE 14 X 20 CMS., ARMADA CON 4 VARILLAS DEL # 3 Y ESTRIBOS DEL NO. 2 @ 20 CMS., INCLUYE:  ARMADO, COLADO, CURADO, VIBRADO, CIMBRA COMUN, DESCIMBRA, TRASLAPES, CRUCES DE VARILLAS CON ELEMENTOS TRANSVERSALES, DESPERDICIOS, MANO DE OBRA, HERRAMIENTA, ANDAMIOS,  Y ACARREO DE MATERIALES AL SITIO DE SU UTILIZACION, A CUALQUIER ALTURA.","ML ","114.2000",0,"CERO PESOS 00/100 M.N.",0,372264]
[314032,"MURO DE TABIQUE DE LAMA, DE 14 CMS. DE ESPESOR PROMEDIO, A SOGA, CON TABIQUE DE LAMA 7 X 14 X 28 CMS., ACABADO COMUN, ASENTADO CON MORTERO CEMENTO-ARENA EN PROPORCION 1:3, EN CUALQUIER NIVEL, INCLUYE: TRAZO, NIVELACION, PLOMEO, ANDAMIOS, DESPERDICIOS, MANO DE OBRA, LIMPIEZA Y ACARREO DE MATERIALES AL SITIO DE SU UTILIZACION.","M2 ","154.5500",0,"CERO PESOS 00/100 M.N.",0,372265]
["33B.03(355)","RECUBRIMIENTOS Y ACABADOS                         ",null,null,null,null,{"$f":"TEXT(SUM(G117:G118), \"$ #,##0.00 ;\")","v":"$ 0.00 "}]
[355022,"APLANADO DE MUROS Y/O TECHOS CON MORTERO CEMENTO-CAL-ARENA DE RIO EN PROP. 1:2:6 DE 2 CM. DE ESPESOR PROMEDIO, A PLOMO Y REGLA, ACABADO APALILLADO FINO, INCLUYE: MATERIALES, DESPERDICIOS, ANDAMIOS, HERRAMIENTAS, PLOMEO, NIVELACION, REMATES, LIMPIEZA DEL AREA DE TRABAJO Y ACARREO DE MATERIALES AL SITIO DE SU UTILIZACION. A CUALQUIER NIVEL.\n","M2 ","785.4000",0,"CERO PESOS 00/100 M.N.",0,372266]
[357322,"BOQUILLAS EN PUERTAS Y VENTANAS, CON MORTERO CEMENTO-CAL-ARENA 1:2:6, INCLUYE: ANDAMIOS Y ACARREO DE MATERIALES AL SITIO DE SU UTILIZACION.","ML ","214.4500",0,"CERO PESOS 00/100 M.N.",0,372267]
["33B.04(372)","PISOS                                             ",null,null,null,null,{"$f":"TEXT(SUM(G120:G121), \"$ #,##0.00 ;\")","v":"$ 0.00 "}]
[373502,"CEJA DE CONCRETO F'C=150 KG/CM2, TMA=3/4\" DE 12.0 X 18.0 CM DE SECCION PROMEDIO, ARMADA CON 1 VARILLA #3 (3/8\") Y ESTRIBOS DE 1/4\" @ 25.0 CM, EN CUALQUIER NIVEL. INCLUYE: CIMBRA APARENTE, DESCIMBRA, COLADO, VIBRADO, CURADO, PERFILADO, CHAFLANES, GOTERO, LIMPIEZA, HERRAMIENTAS, MATERIALES, DESPERDICIOS Y MANO DE OBRA.","ML ","75.7500",0,"CERO PESOS 00/100 M.N.",0,372269]
[382685,"REPISON DE CONCRETO F'C= 150 KG/CM2, CON FORMA TRAPEZOIDAL SECCION DE 50 CM. DE ANCHO X 10 CM. DE ESPESOR EN LOS EXTREMOS Y 15 CM. AL CENTRO DE LA SECCION, ARMADO CON 1 VARILLA DEL # 3 @ 20 CM EN AMBAS DIRECCIONES, CON DETALLES Y MOLDURAS, INCLUYE: CIMBRA APARENTE, DESCIMBRADO, CHAFLANES, COLADO, CURADO, VIBRADO, PERFILADO, DESPERDICIOS, ACABADO PULIDO FINO Y/O CON BROCHA DE PELO, HERRAMIENTA, MANO DE OBRA Y TODO LO NECESARIO PARA SU CORRECTA EJECUCION.","ML ","33.5500",0,"CERO PESOS 00/100 M.N.",0,372272]
["33B.05(393)","PINTURA                                           ",null,null,null,null,{"$f":"TEXT(SUM(G123:G124), \"$ #,##0.00 ;\")","v":"$ 0.00 "}]
[393022,"PINTURA VINIL-ACRÍLICA A BASE DE AGUA ACABADO SEMIMATE  LAVABLE, PARA INTERIORES Y EXTERIORES QUE NO DESPRENDA VAPORES TÓXICOS NI OLORES DESAGRADABLES, CON LAS SIGUIENTES CARACTERÍSTICAS ( SÓLIDOS POR PESO 46-52%, SÓLIDOS POR VOLUMEN 30-36%, VISCOSIDAD DE 100-130 UK A 25°C, DENSIDAD > O = 1.2 TON/M3., LAVABILIDAD > O = 4,000 CICLOS, TIEMPO DE SECADO AL TACTO, 30-40 MIN., TIEMPO DE SECADO DURO < O = 8 HRS., CICLO DE CURADO DE 7 DIAS, PH 6-8, RENDIMIENTO EN SUP. LISA 8-10 M2/LT., FINEZA DE MOLIDO (HEGMAN) 3-7 UH.)  EN MUROS APLANADOS DE MEZCLA APALILLADO O PULIDO, TRABAJO TERMINADO, A DOS MANOS, INCLUYE: MATERIALES MENORES Y DE CONSUMO, ANDAMIOS, PREPARACION DE LA SUPERFICIE, SELLADO DE LA SUPERFICIE, HERRAMIENTAS, LIMPIEZA, MANO DE OBRA Y  ACARREOS DE MATERIALES AL SITIO DE SU UTILIZACIÓN.","M2 ","1,114.0500",0,"CERO PESOS 00/100 M.N.",0,372273]
[393325,"PINTURA DE ESMALTE ALQUIDALICO ANTICORROSIVO, ACABADO BRILLANTE, PARA INTERIORES Y EXTERIORES QUE NO DESPRENDA VAPORES TÓXICOS NI OLORES DESAGRADABLES, CON LAS SIGUIENTES CARACTERÍSTICAS ( SÓLIDOS POR PESO 49-60%, SÓLIDOS POR VOLUMEN 40-46%, VISCOSIDAD DE 110-160 UK A 25°C, DENSIDAD 0.9-1.2 TON/M3., BRILLO A 60°C, 90%, TIEMPO DE SECADO AL TACTO, < O = 6 HRS., TIEMPO DE SECADO DURO < O = 24 HRS., ADHERENCIA 100%, DILUCIÓN MÁXIMA (AGUARRÁS, THINER), 15 %,  EN BARANDAL METALICO, EN COLOR DE ACUERDO A INDICADO POR SUPERVISIÓN MEDIDO POR UN SOLO LADO, TRABAJO TERMINADO, A DOS MANOS, INCLUYE: MATERIALES MENORES Y DE CONSUMO, PREPARACION DE LA SUPERFICIE, ANDAMIOS, HERRAMIENTAS, LIMPIEZA, MANO DE OBRA Y  EQUIPO DE SEGURIDAD. CUALQUIER ALTURA..","M2 ","38.2000",0,"CERO PESOS 00/100 M.N.",0,372275]
["33B.06(410)","CANCELERIA, HERRERIA, ALUMINIO, VIDRIOS Y CHAPAS  ",null,null,null,null,{"$f":"TEXT(SUM(G126:G127), \"$ #,##0.00 ;\")","v":"$ 0.00 "}]
[192352,"SUMINISTRO Y COLOCACION DE PLACA DE ACERO A-36 DE 4\" X 4\" X 1/4\" PARA FIJACION DE PASAMANOS O BARANDAL A MURO, ESTRUCTURA Y/O CIMENTACION, INCLUYE: MATERIALES, ANCLAS DE ANGULO, CORTES, FIJACION, SOLDADURA, HERRAMIENTAS Y MANO DE OBRA.\n","PZA","32.0000",0,"CERO PESOS 00/100 M.N.",0,372278]
[412006,"SUMINISTRO, FABRICACION Y COLOCACION DE HERRERIA TUBULAR Y/O ESTRUCTURAL PARA BARANDAL O PASAMANOS,  INCLUYE: SOLDADURA, CORTES, AJUSTES, MATERIALES MENORES, DESCALIBRES, DESPERDICIOS, BISAGRAS, FONDO ANTICORROSIVO, FLETES, HERRAMIENTAS, MANO DE OBRA, Y ACARREO DE MATERIALES AL SITIO DE SU UTLIZACION.","KG ","522.2000",0,"CERO PESOS 00/100 M.N.",0,372279]
["01","PLAZA Y ANDADORES",null,null,null,null,{"$f":"TEXT(SUM(G129 + G136 + G143 + G146), \"$ #,##0.00 ;\")","v":"$ 0.00 "}]
["01.01(150)","TRABAJOS PRELIMINARES                             ",null,null,null,null,{"$f":"TEXT(SUM(G130:G135), \"$ #,##0.00 ;\")","v":"$ 0.00 "}]
[150020,"LIMPIEZA DE TERRENO RETIRANDO BASURA Y DESHIERBE FUERA DE LA OBRA. INCLUYE: HERRAMIENTAS, MANO DE OBRA, RECOLECCION, JUNTA Y RETIRO. (PROYECCION DE CUBIERTA).","M2 ","9.0000",0,"CERO PESOS 00/100 M.N.",0,372239]
[150120,"TRAZO Y NIVELACION DE EXTERIORES ESTABLECIENDO REFERENCIAS DEFINITIVAS, CON TRANSITO Y NIVEL (EQUIPO TOPOGRAFICO), INCLUYE: PERSONAL TECNICO CALIFICADO, ESTACAS, MOJONERAS, LOCALIZACION DE EJES Y/O ENTRE EJES, BANCOS DE NIVEL, MATERIALES PARA SEÑALAMIENTO, EQUIPO, HERRAMIENTA Y MANO DE OBRA.","M2 ","9.0000",0,"CERO PESOS 00/100 M.N.",0,372241]
[150210,"DESPALME DE TERRENO NATURAL POR CUALQUIER MEDIO, CON ESPESOR PROMEDIO DE 20 CM. INCLUYE: CARGA Y ACARREO DEL PRODUCTO FUERA DE LA OBRA, MANO DE OBRA, HERRAMIENTA Y EQUIPO. (PROYECCION DE CUBIERTA).","M2 ","9.0000",0,"CERO PESOS 00/100 M.N.",0,372243]
[152202,"EXCAVACION EN CEPAS POR CUALQUIER MEDIO, MATERIAL TIPO \"A\", DE 0 A 2.00 M. DE PROFUNDIDAD, EN SECO, INCLUYE: AFINE DE TALUDES Y FONDO, TRAPALEOS,  MOVIMIENTOS Y ACARREOS DENTRO DE LA OBRA, HERRAMIENTAS Y MANO DE OBRA, MEDIDO EN BANCO.","M3 ","2.4000",0,"CERO PESOS 00/100 M.N.",0,372245]
[152402,"EXCAVACION A CIELO ABIERTO POR CUALQUIER MEDIO, MATERIAL TIPO \"A\", DE 0 A 2.00 M. DE PROFUNDIDAD, EN SECO, INCLUYE: AFINE DE TALUDES Y FONDO, TRAPALEOS,  MOVIMIENTOS Y ACARREOS DENTRO DE LA OBRA, HERRAMIENTAS Y MANO DE OBRA, MEDIDO EN BANCO.","M3 ","1.8000",0,"CERO PESOS 00/100 M.N.",0,372246]
[156002,"CARGA POR CUALQUIER MEDIO Y ACARREO EN CAMION DE MATERIAL DE DESPERDICIO PRODUCTO DE LAS EXCAVACIONES FUERA DE LA OBRA, A LUGAR PERMITIDO POR LAS AUTORIDADES CORRESPONDIENTES, MEDIDO EN BANCO. INCLUYE CARGA,  ACARREO Y DESCARGA A TIRO LIBRE, HERRAMIENTA, EQUIPO, MATERIALES DE CONSUMO Y MANO DE OBRA.","M3 ","4.2000",0,"CERO PESOS 00/100 M.N.",0,372248]
["01.02(160)","CIMENTACION                                       ",null,null,null,null,{"$f":"TEXT(SUM(G137:G142), \"$ #,##0.00 ;\")","v":"$ 0.00 "}]
[162002,"CIMIENTO DE PIEDRA BRAZA ACOMODADA PIEDRA POR PIEDRA, ASENTADA CON MORTERO CEMENTO-ARENA  EN PROPORCION 1:3. INCLUYE: MATERIALES, DESPERDICIOS, HERRAMIENTAS, LIMPIEZA, MANO DE OBRA Y ACARREO DE MATERIALES AL SITIO DE SU UTILIZACION.","M3 ","2.9000",0,"CERO PESOS 00/100 M.N.",0,372250]
[162302,"RODAPIE DE PIEDRA BRAZA, ACABADO APARENTE UNA CARA, ASENTADA CON MORTERO CEMENTO-ARENA 1:3. INCLUYE: MATERIALES, HERRAMIENTAS, PLOMEO,   LIMPIEZA, MANO DE OBRA Y ACARREO DE MATERIALES AL SITIO DE SU UTILIZACION.","M3 ","1.0500",0,"CERO PESOS 00/100 M.N.",0,372252]
[162404,"NIVELACION DE MURO DE MAMPOSTERIA CON RAJUELA DE PIEDRA BRAZA JUNTEADA CON MORTERO CEM-ARE 1:3. DE 0.10 M. DE ESPESOR X 0.40 M. DE ANCHO PROMEDIO. INCLUYE: NIVELACION, TRAZO, MANO DE OBRA Y HERRAMIENTA. (NO INCLUYE MATERIALES)","ML ","12.0000",0,"CERO PESOS 00/100 M.N.",0,372254]
[180052,"RELLENO EN CEPAS POR CUALQUIER MEDIO, CON MATERIAL DE BANCO, (ARENA LIMOSA, TEPETATE, ETC.) COMPACTADO AL 90% PROCTOR, EN CAPAS DE 15 CM, MEDIDO COMPACTO. INCLUYE:  SUMINISTRO DE AGUA PARA LOGRAR HUMEDAD OPTIMA, DESPERDICIOS, TENDIDO, TRASPALEOS,  EQUIPO, PRUEBAS DE COMPACTACION, AFINE, NIVELACION, HERRAMIENTAS, MANO DE OBRA Y  ACARREO HASTA EL SITIO DE SU COLOCACION.  (VOLUMEN MEDIDO COMPACTADO).","M3 ","1.3000",0,"CERO PESOS 00/100 M.N.",0,372256]
[180103,"RELLENO COMPACTADO AL 95% PROCTOR, CON MATERIAL DE BANCO, EN CAPAS DE 15 CM DE ESPESOR, AGREGANDO AGUA PARA LOGRAR SU HUMEDAD OPTIMA, POR CUALQUIER MEDIO, INCLUYE: SUMINISTRO DE AGUA PARA LOGRAR HUMEDAD OPTIMA, TENDIDO, TRASPALEOS,  DESPERDICIOS, EQUIPO, PRUEBAS DE COMPACTACION, AFINE, NIVELACION, HERRAMIENTAS, MANO DE OBRA Y  ACARREO HASTA EL SITIO DE SU COLOCACION.  (VOLUMEN MEDIDO COMPACTADO).","M3 ","2.7000",0,"CERO PESOS 00/100 M.N.",0,372257]
[180407,"RELLENO CON MATERIAL PRODUCTO DE LA EXCAVACION AGREGANDO CALHIDRA EN PROPORCION 25 KG/M3, COMPACTADO AL 95% PROCTOR, INCLUYE: ESCARIFICADO DEL TERRENO, HUMEDAD OPTIMA, MEZCLADO, TENDIDO, COMPACTACION POR CUALQUIER MEDIO EN CAPAS DE 15 CMS., NIVELADO, PRUEBAS DE COMPACTACION, TRASPALEOS, HERRAMIENTAS, MANO DE OBRA Y LOS ACARREOS NECESARIOS. MEDIDO COMPACTO.","M3 ","1.2000",0,"CERO PESOS 00/100 M.N.",0,372259]
["01.03(372)","PISOS                                             ",null,null,null,null,{"$f":"TEXT(SUM(G144:G145), \"$ #,##0.00 ;\")","v":"$ 0.00 "}]
[373022,"PISO DE CONCRETO F'C=150 KG/CM², T.M.A. 3/4\", DE 0.10 M. DE ESPESOR, COLADO EN CUADROS NO MAYORES DE 3.00 ML POR LADO, INCLUYE: TRAZO, NIVELACION, AFINE Y COMPACTACION DEL TERRENO, AGUA, DESPERDICIOS, ACARREOS, REGLEADO, ACABADO INTEGRAL RAYADO CON BROCHA DE PELO (SIN UTILIZACION DE PASTA), CIMBRA EN FRONTERAS, DESCIMBRA, COLADO, CURADO, REMATES, ESCALONADO, MUESTREADO, JUNTAS FRIAS CON VOLTEADOR, HERRAMIENTAS Y MANO DE OBRA.","M2 ","9.0000",0,"CERO PESOS 00/100 M.N.",0,372268]
[373766,"FORJADO DE NARIZ DE REMATE EN PISO DE  BANQUETAS, CON 10.0  X  10.0 CM. DE SECCION, INCLUYE SOLO: CIMBRA APARENTE, DESCIMBRA, GOTERO, FORJADO, CHAFLANES, PERFILADO, DESPERDICIOS, HERRAMIENTAS, Y MANO DE OBRA. (NO INCLUYE CONCRETO).","ML ","12.0000",0,"CERO PESOS 00/100 M.N.",0,372270]
["01.04(396)","LIMPIEZA                                          ",null,null,null,null,{"$f":"TEXT(SUM(G147:G147), \"$ #,##0.00 ;\")","v":"$ 0.00 "}]
[396012,"LIMPIEZA DE PISOS DE CONCRETO CON AGUA Y ACIDO MURIATICO AL 10%.","M2 ","9.0000",0,"CERO PESOS 00/100 M.N.",0,372276]
[69,"RAMPAS",null,null,null,null,{"$f":"TEXT(SUM(G149 + G155 + G162 + G164 + G166 + G168 + G170), \"$ #,##0.00 ;\")","v":"$ 0.00 "}]
["69.01(150)","TRABAJOS PRELIMINARES                             ",null,null,null,null,{"$f":"TEXT(SUM(G150:G154), \"$ #,##0.00 ;\")","v":"$ 0.00 "}]
[150020,"LIMPIEZA DE TERRENO RETIRANDO BASURA Y DESHIERBE FUERA DE LA OBRA. INCLUYE: HERRAMIENTAS, MANO DE OBRA, RECOLECCION, JUNTA Y RETIRO. (PROYECCION DE CUBIERTA).","M2 ","4.5000",0,"CERO PESOS 00/100 M.N.",0,372240]
[150120,"TRAZO Y NIVELACION DE EXTERIORES ESTABLECIENDO REFERENCIAS DEFINITIVAS, CON TRANSITO Y NIVEL (EQUIPO TOPOGRAFICO), INCLUYE: PERSONAL TECNICO CALIFICADO, ESTACAS, MOJONERAS, LOCALIZACION DE EJES Y/O ENTRE EJES, BANCOS DE NIVEL, MATERIALES PARA SEÑALAMIENTO, EQUIPO, HERRAMIENTA Y MANO DE OBRA.","M2 ","4.5000",0,"CERO PESOS 00/100 M.N.",0,372242]
[150210,"DESPALME DE TERRENO NATURAL POR CUALQUIER MEDIO, CON ESPESOR PROMEDIO DE 20 CM. INCLUYE: CARGA Y ACARREO DEL PRODUCTO FUERA DE LA OBRA, MANO DE OBRA, HERRAMIENTA Y EQUIPO. (PROYECCION DE CUBIERTA).","M2 ","4.5000",0,"CERO PESOS 00/100 M.N.",0,372244]
[152402,"EXCAVACION A CIELO ABIERTO POR CUALQUIER MEDIO, MATERIAL TIPO \"A\", DE 0 A 2.00 M. DE PROFUNDIDAD, EN SECO, INCLUYE: AFINE DE TALUDES Y FONDO, TRAPALEOS,  MOVIMIENTOS Y ACARREOS DENTRO DE LA OBRA, HERRAMIENTAS Y MANO DE OBRA, MEDIDO EN BANCO.","M3 ","0.7000",0,"CERO PESOS 00/100 M.N.",0,372247]
[156002,"CARGA POR CUALQUIER MEDIO Y ACARREO EN CAMION DE MATERIAL DE DESPERDICIO PRODUCTO DE LAS EXCAVACIONES FUERA DE LA OBRA, A LUGAR PERMITIDO POR LAS AUTORIDADES CORRESPONDIENTES, MEDIDO EN BANCO. INCLUYE CARGA,  ACARREO Y DESCARGA A TIRO LIBRE, HERRAMIENTA, EQUIPO, MATERIALES DE CONSUMO Y MANO DE OBRA.","M3 ","0.7000",0,"CERO PESOS 00/100 M.N.",0,372249]
["69.02(160)","CIMENTACION                                       ",null,null,null,null,{"$f":"TEXT(SUM(G156:G161), \"$ #,##0.00 ;\")","v":"$ 0.00 "}]
[162002,"CIMIENTO DE PIEDRA BRAZA ACOMODADA PIEDRA POR PIEDRA, ASENTADA CON MORTERO CEMENTO-ARENA  EN PROPORCION 1:3. INCLUYE: MATERIALES, DESPERDICIOS, HERRAMIENTAS, LIMPIEZA, MANO DE OBRA Y ACARREO DE MATERIALES AL SITIO DE SU UTILIZACION.","M3 ","1.0000",0,"CERO PESOS 00/100 M.N.",0,372251]
[162302,"RODAPIE DE PIEDRA BRAZA, ACABADO APARENTE UNA CARA, ASENTADA CON MORTERO CEMENTO-ARENA 1:3. INCLUYE: MATERIALES, HERRAMIENTAS, PLOMEO,   LIMPIEZA, MANO DE OBRA Y ACARREO DE MATERIALES AL SITIO DE SU UTILIZACION.","M3 ","0.6000",0,"CERO PESOS 00/100 M.N.",0,372253]
[162404,"NIVELACION DE MURO DE MAMPOSTERIA CON RAJUELA DE PIEDRA BRAZA JUNTEADA CON MORTERO CEM-ARE 1:3. DE 0.10 M. DE ESPESOR X 0.40 M. DE ANCHO PROMEDIO. INCLUYE: NIVELACION, TRAZO, MANO DE OBRA Y HERRAMIENTA. (NO INCLUYE MATERIALES)","ML ","6.0000",0,"CERO PESOS 00/100 M.N.",0,372255]
[180103,"RELLENO COMPACTADO AL 95% PROCTOR, CON MATERIAL DE BANCO, EN CAPAS DE 15 CM DE ESPESOR, AGREGANDO AGUA PARA LOGRAR SU HUMEDAD OPTIMA, POR CUALQUIER MEDIO, INCLUYE: SUMINISTRO DE AGUA PARA LOGRAR HUMEDAD OPTIMA, TENDIDO, TRASPALEOS,  DESPERDICIOS, EQUIPO, PRUEBAS DE COMPACTACION, AFINE, NIVELACION, HERRAMIENTAS, MANO DE OBRA Y  ACARREO HASTA EL SITIO DE SU COLOCACION.  (VOLUMEN MEDIDO COMPACTADO).","M3 ","1.6000",0,"CERO PESOS 00/100 M.N.",0,372258]
[180407,"RELLENO CON MATERIAL PRODUCTO DE LA EXCAVACION AGREGANDO CALHIDRA EN PROPORCION 25 KG/M3, COMPACTADO AL 95% PROCTOR, INCLUYE: ESCARIFICADO DEL TERRENO, HUMEDAD OPTIMA, MEZCLADO, TENDIDO, COMPACTACION POR CUALQUIER MEDIO EN CAPAS DE 15 CMS., NIVELADO, PRUEBAS DE COMPACTACION, TRASPALEOS, HERRAMIENTAS, MANO DE OBRA Y LOS ACARREOS NECESARIOS. MEDIDO COMPACTO.","M3 ","0.7000",0,"CERO PESOS 00/100 M.N.",0,372260]
[192360,"SUMINISTRO E INSTALACION DE CASQUILLO A BASE DE PTR DE 2 1/2\" X 2 1/2\" BLANCO,  Y 10 CM DE LONGITUD APROXIMADA, PARA RICIBIR DE BARANDAL METALICO,  AHOGADO EN LOSA DE CONCRETO, INCLUYE: TRAZO, CORTES, AJUSTES, NIVELACION, MATERIALES, HERRAMIENTAS,  LIMPIEZA Y MANO DE OBRA.","PZA","6.0000",0,"CERO PESOS 00/100 M.N.",0,372261]
["69.03(310)","MUROS, CADENAS, CASTILLOS Y REPIZONES.            ",null,null,null,null,{"$f":"TEXT(SUM(G163:G163), \"$ #,##0.00 ;\")","v":"$ 0.00 "}]
[310512,"DALA DE CONCRETO F'C=150 KG/CM2, T.M.A.=3/4\", CON SECCION DE 10 X 12 CMS., SIN ARMAR, INCLUYE: COLADO, CURADO, VIBRADO, CIMBRA APARENTE, DESCIMBRA, DESPERDICIOS, MANO DE OBRA, HERRAMIENTA, LIMPIEZA DEL AREA DE TRABAJO Y ACARREO DE MATERIALES AL SITIO DE SU UTILIZACION, A CUALQUIER ALTURA.","ML ","6.0000",0,"CERO PESOS 00/100 M.N.",0,372263]
["69.04(372)","PISOS                                             ",null,null,null,null,{"$f":"TEXT(SUM(G165:G165), \"$ #,##0.00 ;\")","v":"$ 0.00 "}]
[375242,"FORJADO DE RAMPA PARA MINUSVALIDOS FABRICADO A BASE DE CONCRETO F'C=150 KG/CM2. T.M.A. 3/4\" HECHO EN OBRA DE 0.10 MT. DE ESPESOR  PROMEDIO DANDO PENDIENTE DEL 6%. INCLUYE: HERRAMIENTAS, ACABADO RAYADO,  CIMBRA DESCIMBRA, MANO DE OBRA, REMATE EN PISO Y BANQUETA, ACARREO DEL  MATERIALES AL SITIO DE SU UTILIZACION.","M2 ","4.5000",0,"CERO PESOS 00/100 M.N.",0,372271]
["69.05(393)","PINTURA                                           ",null,null,null,null,{"$f":"TEXT(SUM(G167:G167), \"$ #,##0.00 ;\")","v":"$ 0.00 "}]
[393324,"PINTURA DE ESMALTE ALQUIDALICO ANTICORROSIVO, ACABADO BRILLANTE, PARA INTERIORES Y EXTERIORES QUE NO DESPRENDA VAPORES TÓXICOS NI OLORES DESAGRADABLES, CON LAS SIGUIENTES CARACTERÍSTICAS ( SÓLIDOS POR PESO 49-60%, SÓLIDOS POR VOLUMEN 40-46%, VISCOSIDAD DE 110-160 UK A 25°C, DENSIDAD 0.9-1.2 TON/M3., BRILLO A 60°C, 90%, TIEMPO DE SECADO AL TACTO, < O = 6 HRS., TIEMPO DE SECADO DURO < O = 24 HRS., ADHERENCIA 100%, RENDIMIENTO EN SUP. LISA 8-10 M2/LT., DILUCIÓN MÁXIMA (AGUARRÁS, THINER), 15 %,   EN TUBO DE FIERRO NEGRO DE 2\" DE DIÁMETRO, (POSTES, PASAMANOS, BARANDALES, ESTRUCTURAS, REDES, ETC.), TRABAJO TERMINADO, A DOS MANOS, INCLUYE: MATERIALES MENORES Y DE CONSUMO, PREPARACION DE LA SUPERFICIE, ANDAMIOS, HERRAMIENTAS, LIMPIEZA, MANO DE OBRA Y  EQUIPO DE SEGURIDAD. CUALQUIER ALTURA.","ML ","25.2000",0,"CERO PESOS 00/100 M.N.",0,372274]
["69.06(396)","LIMPIEZA                                          ",null,null,null,null,{"$f":"TEXT(SUM(G169:G169), \"$ #,##0.00 ;\")","v":"$ 0.00 "}]
[396012,"LIMPIEZA DE PISOS DE CONCRETO CON AGUA Y ACIDO MURIATICO AL 10%.","M2 ","4.5000",0,"CERO PESOS 00/100 M.N.",0,372277]
["69.07(410)","CANCELERIA, HERRERIA, ALUMINIO, VIDRIOS Y CHAPAS  ",null,null,null,null,{"$f":"TEXT(SUM(G171:G171), \"$ #,##0.00 ;\")","v":"$ 0.00 "}]
[412006,"SUMINISTRO, FABRICACION Y COLOCACION DE HERRERIA TUBULAR Y/O ESTRUCTURAL PARA BARANDAL O PASAMANOS,  INCLUYE: SOLDADURA, CORTES, AJUSTES, MATERIALES MENORES, DESCALIBRES, DESPERDICIOS, BISAGRAS, FONDO ANTICORROSIVO, FLETES, HERRAMIENTAS, MANO DE OBRA, Y ACARREO DE MATERIALES AL SITIO DE SU UTLIZACION.","KG ","53.7000",0,"CERO PESOS 00/100 M.N.",0,372280]
["02","RED ELECTRICA",null,null,null,null,{"$f":"TEXT((G173), \"$ #,##0.00 ;\")","v":"$ 0.00 "}]
["02.01(511)","INSTALACION ELECTRICA EN OBRA EXTERIOR            ",null,null,null,null,{"$f":"TEXT(SUM(G174:G179), \"$ #,##0.00 ;\")","v":"$ 0.00 "}]
[534004,"SUMINISTRO Y TENDIDO DE TUBO CONDUIT DE P.V.C. PESADO, DE 19 MM DIAM. INCLUYE: CONEXIONES, TRAZO, EXCAVACION, RELLENO, DESPERDICIOS, MATERIALES MENORES, PRUEBAS Y ACARREO AL SITIO DE SU COLOCACION.","ML ","65.0000",0,"CERO PESOS 00/100 M.N.",0,372281]
[536010,"SUMINISTRO Y COLOCACION DE CABLE VINANEL THW-LS 600 V. A 75° C, 90° C, MARCA CONDUCTORES MONTERREY, (VIAKON-PROTOCOLIZADO), CABLE VINANEL 21 THW-LS 600 V. A 75° C, 90° C, MARCA CONDUMEX (CONDUMEX PROTOCOLIZADO). CAL. 8,  INCLUYE: DESPERDICIOS, MATERIALES MENORES, HERRAMIENTA, CONEXIONES, MANO DE OBRA ESPECIALIZADA, LIMPIEZA DEL AREA DE TRABAJO, PRUEBAS Y ACARREO AL SITIO DE SU COLOCACION.","ML ","130.0000",0,"CERO PESOS 00/100 M.N.",0,372282]
[537108,"SUMINISTRO Y COLOCACION DE CABLE DE COBRE DESNUDO CAL. 10, AWG, MCA. CONDUMEX, CONELEC O CONDUCTORES MONTERREY. INCLUYE: DESPERDICIOS, MATERIALES MENORES, PRUEBAS Y ACARREO AL SITIO DE SU COLOCACION.","ML ","65.0000",0,"CERO PESOS 00/100 M.N.",0,372283]
[543012,"SUMINISTRO Y COLOCACION DE INTERRUPTOR TERMOMAGNETICO DERIVADO CON 1 POLOS, DE 15-60 AMPERES, MCA. SQUARE D, CAT. QO. INCLUYE: PRUEBAS, MATERIALES MENORES, HERRAMIENTAS, MANO DE OBRA ESPECIALIZADA  Y ACARREO DE MATERIALES AL SITIO DE SU COLOCACION.","PZA","1.0000",0,"CERO PESOS 00/100 M.N.",0,372284]
[558522,"SUMINISTRO Y COLOCACION DE VARILLA DE TIERRA COOPERWELD, DE 3.00 M X 19 MM DE DIAM.  INCLUYE: UNA  CARGA CADWELD NO. 90, CONECTOR COOPER WELD, SOLDADURA CADWELD NO. 90, PARTE PROPORCIONAL DE MOLDE 161V.,  MATERIALES MENORES, PRUEBAS Y ACARREO AL SITIO DE SU COLOCACION.","PZA","1.0000",0,"CERO PESOS 00/100 M.N.",0,372285]
[880618,"SUMINISTRO Y COLOCACION DE REGISTRO ELECTRICO PARA ALUMBRADO, PREFABRICADO  DE 0.40 X 0.40 X 0.60 MTS. CON TAPA DE CONCRETO,  MARCO Y CONTRAMARCO DE FIERRO GALVANIZADO, INCLUYE: TRAZO, EXCAVACION, TAPA DE CONCRETO CON MARCO Y CONTRAMARCO DE ANGULO, RELLENO, FILTRO DE GRAVA, HERRAMIENTAS, MANO DE OBRA, FLETES, ACARREO AL SITIO DE SU COLOCACION Y LIMPIEZA DEL AREA DE TRABAJO.","PZA","4.0000",0,"CERO PESOS 00/100 M.N.",0,372286]
[16,"BEBEDERO",null,null,null,null,{"$f":"TEXT((G181), \"$ #,##0.00 ;\")","v":"$ 0.00 "}]
["16.01(565)","INSTALACION HIDRAULICA, SANITARIA Y GAS EN O. EXT.",null,null,null,null,{"$f":"TEXT(SUM(G182:G182), \"$ #,##0.00 ;\")","v":"$ 0.00 "}]
[910521,"REUBICACION DE BEBEDERO DOBLE MONTADO EN GABINETE DE LAMINA DE ACERO INOXIDABLE CON ESTRUCTURA DE DE ANGULO,  EXISTENTE EN OBRA,  INSTALADA SOBRE BASE DE PISO,  INCLUYE: DESINSTALACION CON RECUPERACION E INSTALACION EN SU NUEVA UBICACION DE PROTECCIONES,  FILTROS, LINEAS ELECTRICA EHIDRAULICAS, MATERIALES FALTANTES, DESPERDICIOS,  CONEXIONES HIDRAULICAS Y SANITARIAS, LIMPIEZA,  MATERIALES MENORES, DE FIJACION Y DE CONSUMO, HERRAMIENTAS,  PRUEBAS Y ACARREO DE MATERIALES AL SITIO DE SU COLOCACION.","PZA","1.0000",0,"CERO PESOS 00/100 M.N.",0,372287]
[null,"RESUMEN DE PARTIDAS"]
["BAS-CONA-06596","CONSTRUCCIÓN DE AULA DIDÁCTICA Y REHABILITACIÓN DE LA ESCUELA PRIMARIA AURELIO ORTEGA CCT 14DPR2722S, UBICADA EN LA LOCALIDAD TIERRAS COLORADAS, MUNICIPIO DE ACATIC, JALISCO.",null,null,null,null,{"$f":"G17","v":"$ 0.00 "}]
["D","EDIFICIO D",null,null,null,null,{"$f":"G18","v":"$ 0.00 "}]
["D.01(140)","DEMOLICIONES, DESMONTAJES Y MECANICA DE SUELOS    ",null,null,null,null,{"$f":"G19","v":"$ 0.00 "}]
["D.02(150)","TRABAJOS PRELIMINARES                             ",null,null,null,null,{"$f":"G21","v":"$ 0.00 "}]
["D.03(160)","CIMENTACION                                       ",null,null,null,null,{"$f":"G28","v":"$ 0.00 "}]
["D.04(200)","ESTRUCTURA                                        ",null,null,null,null,{"$f":"G44","v":"$ 0.00 "}]
["D.05(310)","MUROS, CADENAS, CASTILLOS Y REPIZONES.            ",null,null,null,null,{"$f":"G53","v":"$ 0.00 "}]
["D.06(319)","ENTREPISOS, CUBIERTA Y ACABADOS DE AZOTEA         ",null,null,null,null,{"$f":"G62","v":"$ 0.00 "}]
["D.07(355)","RECUBRIMIENTOS Y ACABADOS                         ",null,null,null,null,{"$f":"G64","v":"$ 0.00 "}]
["D.08(372)","PISOS                                             ",null,null,null,null,{"$f":"G68","v":"$ 0.00 "}]
["D.09(393)","PINTURA                                           ",null,null,null,null,{"$f":"G78","v":"$ 0.00 "}]
["D.10(396)","LIMPIEZA                                          ",null,null,null,null,{"$f":"G84","v":"$ 0.00 "}]
["D.11(410)","CANCELERIA, HERRERIA, ALUMINIO, VIDRIOS Y CHAPAS  ",null,null,null,null,{"$f":"G88","v":"$ 0.00 "}]
["D.12(510)","INSTALACION ELECTRICA EN EDIFICIO                 ",null,null,null,null,{"$f":"G96","v":"$ 0.00 "}]
["D.13(530)","EQUIPOS E INSTALACIONES DE REDES DE VOZ Y DATOS.  ",null,null,null,null,{"$f":"G104","v":"$ 0.00 "}]
["33B","MURO REJA",null,null,null,null,{"$f":"G106","v":"$ 0.00 "}]
["33B.01(140)","DEMOLICIONES, DESMONTAJES Y MECANICA DE SUELOS    ",null,null,null,null,{"$f":"G107","v":"$ 0.00 "}]
["33B.02(310)","MUROS, CADENAS, CASTILLOS Y REPIZONES.            ",null,null,null,null,{"$f":"G112","v":"$ 0.00 "}]
["33B.03(355)","RECUBRIMIENTOS Y ACABADOS                         ",null,null,null,null,{"$f":"G116","v":"$ 0.00 "}]
["33B.04(372)","PISOS                                             ",null,null,null,null,{"$f":"G119","v":"$ 0.00 "}]
["33B.05(393)","PINTURA                                           ",null,null,null,null,{"$f":"G122","v":"$ 0.00 "}]
["33B.06(410)","CANCELERIA, HERRERIA, ALUMINIO, VIDRIOS Y CHAPAS  ",null,null,null,null,{"$f":"G125","v":"$ 0.00 "}]
["01","PLAZA Y ANDADORES",null,null,null,null,{"$f":"G128","v":"$ 0.00 "}]
["01.01(150)","TRABAJOS PRELIMINARES                             ",null,null,null,null,{"$f":"G129","v":"$ 0.00 "}]
["01.02(160)","CIMENTACION                                       ",null,null,null,null,{"$f":"G136","v":"$ 0.00 "}]
["01.03(372)","PISOS                                             ",null,null,null,null,{"$f":"G143","v":"$ 0.00 "}]
["01.04(396)","LIMPIEZA                                          ",null,null,null,null,{"$f":"G146","v":"$ 0.00 "}]
[69,"RAMPAS",null,null,null,null,{"$f":"G148","v":"$ 0.00 "}]
["69.01(150)","TRABAJOS PRELIMINARES                             ",null,null,null,null,{"$f":"G149","v":"$ 0.00 "}]
["69.02(160)","CIMENTACION                                       ",null,null,null,null,{"$f":"G155","v":"$ 0.00 "}]
["69.03(310)","MUROS, CADENAS, CASTILLOS Y REPIZONES.            ",null,null,null,null,{"$f":"G162","v":"$ 0.00 "}]
["69.04(372)","PISOS                                             ",null,null,null,null,{"$f":"G164","v":"$ 0.00 "}]
["69.05(393)","PINTURA                                           ",null,null,null,null,{"$f":"G166","v":"$ 0.00 "}]
["69.06(396)","LIMPIEZA                                          ",null,null,null,null,{"$f":"G168","v":"$ 0.00 "}]
["69.07(410)","CANCELERIA, HERRERIA, ALUMINIO, VIDRIOS Y CHAPAS  ",null,null,null,null,{"$f":"G170","v":"$ 0.00 "}]
["02","RED ELECTRICA",null,null,null,null,{"$f":"G172","v":"$ 0.00 "}]
["02.01(511)","INSTALACION ELECTRICA EN OBRA EXTERIOR            ",null,null,null,null,{"$f":"G173","v":"$ 0.00 "}]
[16,"BEBEDERO",null,null,null,null,{"$f":"G180","v":"$ 0.00 "}]
["16.01(565)","INSTALACION HIDRAULICA, SANITARIA Y GAS EN O. EXT.",null,null,null,null,{"$f":"G181","v":"$ 0.00 "}]
[]
["IMPORTE CON LETRA (IVA INCLUIDO)",null,null,null,null,"SUBTOTAL M.N.",{"$f":"TEXT(G17,  \"$ #,##0.00 ;\")","v":"$ 0.00 "}]
[{"$f":"UPPER(CONVERTIRNUM(ROUND( G17 * 1.16, 2)))","v":"CERO PESOS 00/100 M.N."},null,null,null,null,"IVA M.N.",{"$f":"TEXT(ROUND( G17 * 0.16, 2),  \"$ #,##0.00 ;\")","v":"$ 0.00 "}]
[null,null,null,null,null,"TOTAL M.N.",{"$f":"TEXT(ROUND( G17 * 1.16, 2),  \"$ #,##0.00 ;\")","v":"$ 0.00 "}]